Body Name,ONS SNAC ID,Pay Date,Transaction No,Amount �,Supplier Name,Company Registration No,Department,Account Name,CIPFA Service Reporting
Swale Borough Council,29UM,06/03/2018,1157723,850.00,REDACTED PERSONAL INFORMATION,                         ,HOUSING SERVICES,RDS - Landlord claim on Bond Scheme,Housing
Swale Borough Council,29UM,06/03/2018,4500626,-850.00,REDACTED PERSONAL INFORMATION,                         ,HOUSING SERVICES,RDS - Landlord claim on Bond Scheme,Housing
Swale Borough Council,29UM,07/03/2018,1157389,5238.00,ALCIUM SOFTWARE LIMITED,4157769                  ,ECONOMIC DEVELOPMENT,Fees and Services,Planning and Development Services
Swale Borough Council,29UM,07/03/2018,1157569,13253.78,APCOA PARKING (UK) LTD,2572947                  ,CAR PARKS,Private Contractors,Highway and Transport Services
Swale Borough Council,29UM,07/03/2018,1157569,19880.65,APCOA PARKING (UK) LTD,2572947                  ,CAR PARKS,Private Contractors,Highway and Transport Services
Swale Borough Council,29UM,07/03/2018,1157362,1415.37,BLENWOOD LTD,4383277                  ,LEISURE & OPEN SPACES,Tree Maintenance,Cultural and Related Services
Swale Borough Council,29UM,07/03/2018,1157456,708.00,BLENWOOD LTD,4383277                  ,LEISURE & OPEN SPACES,Maintenance - Grounds,Cultural and Related Services
Swale Borough Council,29UM,07/03/2018,1157611,2227.45,BLENWOOD LTD,4383277                  ,LEISURE & OPEN SPACES,Grounds Contract Variations,Cultural and Related Services
Swale Borough Council,29UM,07/03/2018,1157612,2189.80,BLENWOOD LTD,4383277                  ,LEISURE & OPEN SPACES,Maintenance - Grounds,Environmental and Regulatory Services
Swale Borough Council,29UM,07/03/2018,1157422,7875.00,BLOOM PROCUREMENT SERVICES LTD,08045123                 ,PLANNING SERVICES,Fees and Services,Planning and Development Services
Swale Borough Council,29UM,07/03/2018,1157595,1000.00,BOUNCE DMT & TRAMPOLINE CLUB,                         ,TOURISM & SPORTS DEVELOPMENT,Grants & Subscriptions,Cultural and Related Services
Swale Borough Council,29UM,07/03/2018,1157435,885.00,BT DEVELOPMENTS,                         ,HOUSING SERVICES,B & B - Homelessness Landlord Payments,Housing
Swale Borough Council,29UM,07/03/2018,1157748,6787.75,COLDWELL CONSTRUCTION LTD,4814340                  ,HOUSING SERVICES,Housing Renovation Grants,Not used in this Structure
Swale Borough Council,29UM,07/03/2018,1157530,332.04,COPSHOP UK LTD,04734385                 ,ENVIRONMENTAL RESPONSE TEAM,Protective Clothing,Internal Trading Cost Centres
Swale Borough Council,29UM,07/03/2018,1157250,7118.84,COVALENT SOFTWARE LIMITED,4645635                  ,POLICY,Payments in Year,Ledger/Suspense Codes
Swale Borough Council,29UM,07/03/2018,1157747,12877.43,DAYTRAD LIMITED,7654373                  ,HOUSING SERVICES,Housing Renovation Grants,Not used in this Structure
Swale Borough Council,29UM,07/03/2018,1157537,500.00,FAVERSHAM CRICKET CLUB,                         ,ECONOMY & COMMUNITIES,Grants & Subscriptions,Central Services to the Public
Swale Borough Council,29UM,07/03/2018,1157536,1930.00,FAVERSHAM TOWN COUNCIL,                         ,ECONOMY & COMMUNITIES,Grants & Subscriptions,Central Services to the Public
Swale Borough Council,29UM,07/03/2018,1157589,295.00,FIRE & SECURITY CONSULTANCY LTD,5946022                  ,PROPERTY SERVICES,Service Contracts,Corporate & Democratic Core
Swale Borough Council,29UM,07/03/2018,1157050,2480.00,FIRST STOP HOUSING SOLUTION LTD,                         ,HOUSING SERVICES,B & B - Homelessness Landlord Payments,Housing
Swale Borough Council,29UM,07/03/2018,1157602,1000.00,HALFWAY BADMINTON CLUB,                         ,TOURISM & SPORTS DEVELOPMENT,Grants & Subscriptions,Cultural and Related Services
Swale Borough Council,29UM,07/03/2018,1157489,5818.33,HANSON GARAGES LTD,02927821                 ,LEISURE & OPEN SPACES,Maintenance - Grounds,Environmental and Regulatory Services
Swale Borough Council,29UM,07/03/2018,1157743,2223.00,HIGHER ELEVATION LTD,                         ,HOUSING SERVICES,Housing Renovation Grants,Not used in this Structure
Swale Borough Council,29UM,07/03/2018,1157744,2680.00,HIGHER ELEVATION LTD,                         ,HOUSING SERVICES,Housing Renovation Grants,Not used in this Structure
Swale Borough Council,29UM,07/03/2018,1157745,4076.98,HIGHER ELEVATION LTD,                         ,HOUSING SERVICES,Housing Renovation Grants,Not used in this Structure
Swale Borough Council,29UM,07/03/2018,1157738,7650.00,HUBBARD & HOUGHTON CONSTRUCTION LTD,                         ,HOUSING SERVICES,Housing Renovation Grants,Not used in this Structure
Swale Borough Council,29UM,07/03/2018,1157739,6870.10,HUBBARD & HOUGHTON CONSTRUCTION LTD,                         ,HOUSING SERVICES,Housing Renovation Grants,Not used in this Structure
Swale Borough Council,29UM,07/03/2018,1157740,6647.82,HUBBARD & HOUGHTON CONSTRUCTION LTD,                         ,HOUSING SERVICES,Housing Renovation Grants,Not used in this Structure
Swale Borough Council,29UM,07/03/2018,1157571,1600.00,HUGHES GARDEN SERVICES,                         ,HOUSING SERVICES,Rechargeable Environ Works,Housing
Swale Borough Council,29UM,07/03/2018,1157400,258.00,ISTORAGE LIMITED,06951286                 ,MKS ICT,Payments in Year,Ledger/Suspense Codes
Swale Borough Council,29UM,07/03/2018,1157400,5.00,ISTORAGE LIMITED,06951286                 ,MKS ICT,Payments in Year,Ledger/Suspense Codes
Swale Borough Council,29UM,07/03/2018,1156976,1672.00,MAGEES GUESTHOUSE,                         ,HOUSING SERVICES,B & B - Homelessness Landlord Payments,Housing
Swale Borough Council,29UM,07/03/2018,1157563,73585.00,MAIDSTONE BOROUGH COUNCIL,                         ,PLANNING SERVICES,MKS Charges for Planning,Internal Trading Cost Centres
Swale Borough Council,29UM,07/03/2018,1157634,15449.32,MATRIX SCM LTD,2227962                  ,HUMAN RESOURCES,Agency/Contract Staff,Internal Trading Cost Centres
Swale Borough Council,29UM,07/03/2018,1157544,768.00,MAYLOW CONSTRUCTION LTD,                         ,LEISURE & OPEN SPACES,Maintenance - Grounds,Cultural and Related Services
Swale Borough Council,29UM,07/03/2018,1157559,1438.00,MAYLOW CONSTRUCTION LTD,                         ,LEISURE & OPEN SPACES,Maintenance - Grounds,Cultural and Related Services
Swale Borough Council,29UM,07/03/2018,1157643,655.00,METRIC GROUP LTD,2560839                  ,CAR PARKS,Fees - Licence,Highway and Transport Services
Swale Borough Council,29UM,07/03/2018,1157650,1561.00,METROSIGNS 2000 (BEDFORD) LTD,4597343                  ,LEISURE & OPEN SPACES,Maintenance - Grounds,Cultural and Related Services
Swale Borough Council,29UM,07/03/2018,1157653,289.22,MIDLANDS SIGNS LEICESTER LTD,1778323                  ,TOURISM & SPORTS DEVELOPMENT,Grants & Subscriptions,Cultural and Related Services
Swale Borough Council,29UM,07/03/2018,1157518,61.44,MILLSONS VENDING LIMITED,4676810                  ,PROPERTY SERVICES,Coffee Machines - Supplies,Internal Trading Cost Centres
Swale Borough Council,29UM,07/03/2018,1157518,272.19,MILLSONS VENDING LIMITED,4676810                  ,PROPERTY SERVICES,Coffee Machines - Supplies,Internal Trading Cost Centres
Swale Borough Council,29UM,07/03/2018,1157601,270.00,MILTON CREEK TRUST,                         ,TOURISM & SPORTS DEVELOPMENT,Grants & Subscriptions,Cultural and Related Services
Swale Borough Council,29UM,07/03/2018,1157676,2500.00,REDACTED PERSONAL INFORMATION,                         ,PLANNING SERVICES,Legal Fees,Internal Trading Cost Centres
Swale Borough Council,29UM,07/03/2018,1157676,500.00,REDACTED PERSONAL INFORMATION,                         ,PLANNING SERVICES,Legal Fees,Internal Trading Cost Centres
Swale Borough Council,29UM,07/03/2018,1157493,275.00,MR J W GATES,                         ,SERVICE DELIVERY,Maintenance - Grounds,Cultural and Related Services
Swale Borough Council,29UM,07/03/2018,1157561,2672.00,REDACTED PERSONAL INFORMATION,                         ,MKS ENVIRONMENTAL SERVICES,Funeral Expenses,Environmental and Regulatory Services
Swale Borough Council,29UM,07/03/2018,1157070,847.00,REDACTED PERSONAL INFORMATION,                         ,HOUSING SERVICES,B & B - Homelessness Landlord Payments,Housing
Swale Borough Council,29UM,07/03/2018,1157226,847.00,REDACTED PERSONAL INFORMATION,                         ,HOUSING SERVICES,B & B - Homelessness Landlord Payments,Housing
Swale Borough Council,29UM,07/03/2018,1157600,1000.00,MS SWALE,                         ,TOURISM & SPORTS DEVELOPMENT,Grants & Subscriptions,Cultural and Related Services
Swale Borough Council,29UM,07/03/2018,1157494,4611.70,NATIONAL OFFENDER MANAGEMENT SERVICE,                         ,COMMUNITY SAFETY,Fees and Services,Environmental and Regulatory Services
Swale Borough Council,29UM,07/03/2018,1157494,4611.70,NATIONAL OFFENDER MANAGEMENT SERVICE,                         ,LEISURE & OPEN SPACES,Maintenance - Grounds,Cultural and Related Services
Swale Borough Council,29UM,07/03/2018,1157540,266.25,OBSIDIAN SECURITY LTD,                         ,SERVICE DELIVERY,Non-Planned Building Maintenance,Cultural and Related Services
Swale Borough Council,29UM,07/03/2018,1157633,554.00,PRIMESIGHT,1847728                  ,ECONOMIC DEVELOPMENT,Advertising & Promo - Ext Fund by Grant & Other Income,Planning and Development Services
Swale Borough Council,29UM,07/03/2018,1156935,1885.00,REARDON PROPERTIES,                         ,HOUSING SERVICES,B & B - Homelessness Landlord Payments,Housing
Swale Borough Council,29UM,07/03/2018,1157749,348.00,S A BRIGGS,                         ,HOUSING SERVICES,Housing Renovation Grants,Not used in this Structure
Swale Borough Council,29UM,07/03/2018,1157557,744.78,SCOTTISH WATER BUSINESS STREAM LTD,SC294924                 ,SERVICE DELIVERY,Water - Metered,Cultural and Related Services
Swale Borough Council,29UM,07/03/2018,1157574,370.38,SCOTTISH WATER BUSINESS STREAM LTD,SC294924                 ,CONTRACT & PROCUREMENT,Water - Metered,Environmental and Regulatory Services
Swale Borough Council,29UM,07/03/2018,1157577,454.99,SITTINGBOURNE COMMUNITY COLLEGE,                         ,TOURISM & SPORTS DEVELOPMENT,Fees and Services,Cultural and Related Services
Swale Borough Council,29UM,07/03/2018,1157746,752.40,SOUTH EAST BUILDING CO LTD,1786838                  ,HOUSING SERVICES,Housing Renovation Grants,Not used in this Structure
Swale Borough Council,29UM,07/03/2018,1157514,1425.00,THE OYSTER PARTNERSHIP,05020374                 ,PLANNING SERVICES,Agency/Contract Staff,Planning and Development Services
Swale Borough Council,29UM,07/03/2018,1156943,684.00,TRAFALGAR TAVERN LTD,07999329                 ,HOUSING SERVICES,B & B - Homelessness Landlord Payments,Housing
Swale Borough Council,29UM,07/03/2018,1157083,651.00,TRAFALGAR TAVERN LTD,07999329                 ,HOUSING SERVICES,B & B - Homelessness Landlord Payments,Housing
Swale Borough Council,29UM,07/03/2018,1157678,471.46,VANITORIALS LIMITED,3952938                  ,PROPERTY SERVICES,Cleaning Materials,Internal Trading Cost Centres
Swale Borough Council,29UM,07/03/2018,1157105,2250.00,WEALD WOODSCAPES LTD,8028446                  ,LEISURE & OPEN SPACES,Maintenance - Grounds,Cultural and Related Services
Swale Borough Council,29UM,07/03/2018,1157532,368.50,WESTBURY SIGNS LTD,6523147                  ,ENVIRONMENTAL RESPONSE TEAM,Signage - External Funded by Grant & Other Income,Internal Trading Cost Centres
Swale Borough Council,29UM,07/03/2018,1157532,255.50,WESTBURY SIGNS LTD,6523147                  ,ENVIRONMENTAL RESPONSE TEAM,Signage - External Funded by Grant & Other Income,Environmental and Regulatory Services
Swale Borough Council,29UM,07/03/2018,1157639,595.72,WHISTL UK LIMITED,04417047                 ,REVENUE SERVICES,Postage,Central Services to the Public
Swale Borough Council,29UM,07/03/2018,1157639,297.86,WHISTL UK LIMITED,04417047                 ,REVENUE SERVICES,Postage,Housing
Swale Borough Council,29UM,07/03/2018,1157639,14.12,WHISTL UK LIMITED,04417047                 ,CAR PARKS,Postage,Internal Trading Cost Centres
Swale Borough Council,29UM,07/03/2018,1157639,218.34,WHISTL UK LIMITED,04417047                 ,PROPERTY SERVICES,Postage,Holding Codes
Swale Borough Council,29UM,07/03/2018,1157639,122.07,WHISTL UK LIMITED,04417047                 ,DEMOCRATIC & ELECTORAL SERVICES,Postage,Central Services to the Public
Swale Borough Council,29UM,07/03/2018,1157000,18002.00,WHITE RESIDENTIAL,                         ,HOUSING SERVICES,B & B - Homelessness Landlord Payments,Housing
Swale Borough Council,29UM,07/03/2018,1157314,495.00,WILLOW TREE HOME SOLUTIONS LTD,                         ,HOUSING SERVICES,Staying Put small repairs (contractors),Housing
Swale Borough Council,29UM,07/03/2018,1157333,725.00,WILLOW TREE HOME SOLUTIONS LTD,                         ,HOUSING SERVICES,Staying Put small repairs (contractors),Housing
Swale Borough Council,29UM,07/03/2018,1157398,494.00,WILLOW TREE HOME SOLUTIONS LTD,                         ,HOUSING SERVICES,Staying Put small repairs (contractors),Housing
Swale Borough Council,29UM,07/03/2018,1157741,5954.04,WILLOW TREE HOME SOLUTIONS LTD,                         ,HOUSING SERVICES,Housing Renovation Grants,Not used in this Structure
Swale Borough Council,29UM,07/03/2018,1157742,5355.60,WILLOW TREE HOME SOLUTIONS LTD,                         ,HOUSING SERVICES,Housing Renovation Grants,Not used in this Structure
Swale Borough Council,29UM,07/03/2018,1157607,8976.00,WYNNE-WILLIAMS ASSOCIATES LTD,5148770                  ,LEISURE & OPEN SPACES,Capitalised Fees And Charges,Not used in this Structure
Swale Borough Council,29UM,08/03/2018,1157482,26.17,ALLSTAR BUSINESS SOLUTIONS LTD - (DT),1073098                  ,DEMOCRATIC & ELECTORAL SERVICES,Petrol/Derv & Oil,Corporate & Democratic Core
Swale Borough Council,29UM,08/03/2018,1157482,107.40,ALLSTAR BUSINESS SOLUTIONS LTD - (DT),1073098                  ,SERVICE DELIVERY,Petrol/Derv & Oil,Cultural and Related Services
Swale Borough Council,29UM,08/03/2018,1157482,136.64,ALLSTAR BUSINESS SOLUTIONS LTD - (DT),1073098                  ,ENVIRONMENTAL RESPONSE TEAM,Fuel For Contract Vehicles,Internal Trading Cost Centres
Swale Borough Council,29UM,08/03/2018,1157613,3200.69,BLENWOOD LTD,4383277                  ,LEISURE & OPEN SPACES,Grounds Maint Suspense,Cultural and Related Services
Swale Borough Council,29UM,08/03/2018,1157614,99465.28,BLENWOOD LTD,4383277                  ,LEISURE & OPEN SPACES,Grounds Maint Suspense,Cultural and Related Services
Swale Borough Council,29UM,08/03/2018,1157772,18.00,LAND REGISTRY - (DT),                         ,COMMUNITY SAFETY,Fees - Land Registry,Environmental and Regulatory Services
Swale Borough Council,29UM,08/03/2018,1157772,96.00,LAND REGISTRY - (DT),                         ,PROPERTY SERVICES,Fees - Land Registry,Trading Undertaking
Swale Borough Council,29UM,08/03/2018,1157772,393.00,LAND REGISTRY - (DT),                         ,REVENUE SERVICES,Fees - Land Registry,Central Services to the Public
Swale Borough Council,29UM,08/03/2018,1157772,96.00,LAND REGISTRY - (DT),                         ,PLANNING SERVICES,Fees - Land Registry,Planning and Development Services
Swale Borough Council,29UM,08/03/2018,1157772,16.00,LAND REGISTRY - (DT),                         ,PLANNING SERVICES,Fees - Land Registry,Planning and Development Services
Swale Borough Council,29UM,08/03/2018,1157772,81.00,LAND REGISTRY - (DT),                         ,ECONOMIC DEVELOPMENT,Fees - Land Registry,Planning and Development Services
Swale Borough Council,29UM,08/03/2018,1157772,10.00,LAND REGISTRY - (DT),                         ,SERVICE DELIVERY,Fees - Land Registry,Cultural and Related Services
Swale Borough Council,29UM,08/03/2018,1157772,6.00,LAND REGISTRY - (DT),                         ,HOUSING SERVICES,Fees - Land Registry,Housing
Swale Borough Council,29UM,08/03/2018,1157772,30.00,LAND REGISTRY - (DT),                         ,MKS ENVIRONMENTAL SERVICES,Fees - Land Registry,Internal Trading Cost Centres
Swale Borough Council,29UM,08/03/2018,1157772,30.00,LAND REGISTRY - (DT),                         ,PLANNING SERVICES,Fees - Land Registry,Internal Trading Cost Centres
Swale Borough Council,29UM,08/03/2018,1157772,30.00,LAND REGISTRY - (DT),                         ,CONTRACT & PROCUREMENT,Fees - Land Registry,Internal Trading Cost Centres
Swale Borough Council,29UM,08/03/2018,1157772,3.00,LAND REGISTRY - (DT),                         ,EXCHEQUER,Fees - Land Registry,Internal Trading Cost Centres
Swale Borough Council,29UM,08/03/2018,1157772,99.00,LAND REGISTRY - (DT),                         ,ENVIRONMENTAL RESPONSE TEAM,Fees - Land Registry,Internal Trading Cost Centres
Swale Borough Council,29UM,08/03/2018,1157772,36.00,LAND REGISTRY - (DT),                         ,LEISURE & OPEN SPACES,Fees - Land Registry,Cultural and Related Services
Swale Borough Council,29UM,08/03/2018,1157772,48.00,LAND REGISTRY - (DT),                         ,HOUSING SERVICES,Fees - Land Registry,Housing
Swale Borough Council,29UM,08/03/2018,1157772,86.00,LAND REGISTRY - (DT),                         ,HOUSING SERVICES,Fees - Land Registry,Housing
Swale Borough Council,29UM,08/03/2018,1157767,869839.00,MAIDSTONE BOROUGH COUNCIL - DT,                         ,FINANCIAL SERVICES,Tariff to Gvt,Taxation and Non-Specific Grant Income
Swale Borough Council,29UM,08/03/2018,1157541,1578.00,MIDLAND SOFTWARE LTD (DT),1852206                  ,HUMAN RESOURCES,Computer Equipment & Materials,Internal Trading Cost Centres
Swale Borough Council,29UM,08/03/2018,1157763,15697.00,PEAC HOLDINGS (UK) LTD (DT),3088213                  ,LEISURE & OPEN SPACES,Contracts,Cultural and Related Services
Swale Borough Council,29UM,08/03/2018,1157651,1123.10,RSP RAIL TRAVEL ACCOUNT - (DT),                         ,FINANCIAL SERVICES,Travel Warrants (Staff Travel),Internal Trading Cost Centres
Swale Borough Council,29UM,08/03/2018,1157762,2968.00,SERCO PAISA LTD - (DT),04908482                 ,LEISURE & OPEN SPACES,Contracts,Cultural and Related Services
Swale Borough Council,29UM,08/03/2018,1157769,517.00,WORLDPAY (DT),07316500                 ,REVENUE SERVICES,Commission Paid,Central Services to the Public
Swale Borough Council,29UM,08/03/2018,1157769,6.66,WORLDPAY (DT),07316500                 ,REVENUE SERVICES,Commission Paid,Central Services to the Public
Swale Borough Council,29UM,08/03/2018,1157769,6.66,WORLDPAY (DT),07316500                 ,REVENUE SERVICES,Commission Paid,Housing
Swale Borough Council,29UM,08/03/2018,1157769,3.33,WORLDPAY (DT),07316500                 ,EXCHEQUER,Commission Paid,Internal Trading Cost Centres
Swale Borough Council,29UM,08/03/2018,1157769,133.00,WORLDPAY (DT),07316500                 ,EXCHEQUER,Commission Paid,Internal Trading Cost Centres
Swale Borough Council,29UM,08/03/2018,1157769,0.89,WORLDPAY (DT),07316500                 ,EXCHEQUER,Commission Paid,Internal Trading Cost Centres
Swale Borough Council,29UM,08/03/2018,1157770,1602.03,WORLDPAY (DT),07316500                 ,REVENUE SERVICES,Commission Paid,Central Services to the Public
Swale Borough Council,29UM,08/03/2018,1157770,20.67,WORLDPAY (DT),07316500                 ,REVENUE SERVICES,Commission Paid,Central Services to the Public
Swale Borough Council,29UM,08/03/2018,1157770,20.67,WORLDPAY (DT),07316500                 ,REVENUE SERVICES,Commission Paid,Housing
Swale Borough Council,29UM,08/03/2018,1157770,10.30,WORLDPAY (DT),07316500                 ,EXCHEQUER,Commission Paid,Internal Trading Cost Centres
Swale Borough Council,29UM,08/03/2018,1157770,413.40,WORLDPAY (DT),07316500                 ,EXCHEQUER,Commission Paid,Internal Trading Cost Centres
Swale Borough Council,29UM,08/03/2018,1157770,2.21,WORLDPAY (DT),07316500                 ,EXCHEQUER,Commission Paid,Internal Trading Cost Centres
Swale Borough Council,29UM,08/03/2018,1157771,845.88,WORLDPAY (DT),07316500                 ,REVENUE SERVICES,Commission Paid,Central Services to the Public
Swale Borough Council,29UM,08/03/2018,1157771,10.71,WORLDPAY (DT),07316500                 ,REVENUE SERVICES,Commission Paid,Central Services to the Public
Swale Borough Council,29UM,08/03/2018,1157771,4.88,WORLDPAY (DT),07316500                 ,REVENUE SERVICES,Commission Paid,Housing
Swale Borough Council,29UM,08/03/2018,1157771,4.64,WORLDPAY (DT),07316500                 ,EXCHEQUER,Commission Paid,Internal Trading Cost Centres
Swale Borough Council,29UM,08/03/2018,1157771,481.31,WORLDPAY (DT),07316500                 ,EXCHEQUER,Commission Paid,Internal Trading Cost Centres
Swale Borough Council,29UM,08/03/2018,1157771,3.59,WORLDPAY (DT),07316500                 ,EXCHEQUER,Commission Paid,Internal Trading Cost Centres
Swale Borough Council,29UM,08/03/2018,1157771,9.99,WORLDPAY (DT),07316500                 ,MKS ICT,Fees and Services,Internal Trading Cost Centres
Swale Borough Council,29UM,12/03/2018,1157926,148021.52,KENT COUNTY COUNCIL,                         ,PLANNING SERVICES,Payments in Year,Ledger/Suspense Codes
Swale Borough Council,29UM,12/03/2018,1157926,147948.80,KENT COUNTY COUNCIL,                         ,PLANNING SERVICES,Payments in Year,Ledger/Suspense Codes
Swale Borough Council,29UM,12/03/2018,1157926,13199.98,KENT COUNTY COUNCIL,                         ,PLANNING SERVICES,Payments in Year,Ledger/Suspense Codes
Swale Borough Council,29UM,12/03/2018,1157926,7160.17,KENT COUNTY COUNCIL,                         ,PLANNING SERVICES,Payments in Year,Ledger/Suspense Codes
Swale Borough Council,29UM,12/03/2018,4500627,-148021.52,KENT COUNTY COUNCIL,                         ,PLANNING SERVICES,Payments in Year,Ledger/Suspense Codes
Swale Borough Council,29UM,12/03/2018,4500627,-147948.80,KENT COUNTY COUNCIL,                         ,PLANNING SERVICES,Payments in Year,Ledger/Suspense Codes
Swale Borough Council,29UM,12/03/2018,4500627,-13199.98,KENT COUNTY COUNCIL,                         ,PLANNING SERVICES,Payments in Year,Ledger/Suspense Codes
Swale Borough Council,29UM,12/03/2018,4500627,-7160.17,KENT COUNTY COUNCIL,                         ,PLANNING SERVICES,Payments in Year,Ledger/Suspense Codes
Swale Borough Council,29UM,14/03/2018,1157521,1725.00,ABAVUS LTD,6082412                  ,COMMISSIONING & CUSTOMER CONTACT,Payments in Year,Ledger/Suspense Codes
Swale Borough Council,29UM,14/03/2018,1157522,2300.00,ABAVUS LTD,6082412                  ,COMMISSIONING & CUSTOMER CONTACT,Payments in Year,Ledger/Suspense Codes
Swale Borough Council,29UM,14/03/2018,1157626,500.00,ABBEY PHYSIC COMMUNITY GARDEN,                         ,ECONOMY & COMMUNITIES,Grants & Subscriptions,Central Services to the Public
Swale Borough Council,29UM,14/03/2018,1157923,11745.63,ACORN MAINTENANCE SERVICES,3546898                  ,HOUSING SERVICES,Housing Renovation Grants,Not used in this Structure
Swale Borough Council,29UM,14/03/2018,1157924,12646.50,ACORN MAINTENANCE SERVICES,3546898                  ,HOUSING SERVICES,Housing Renovation Grants,Not used in this Structure
Swale Borough Council,29UM,14/03/2018,1157849,43.70,ALLPAY LTD,02933191                 ,REVENUE SERVICES,Bank Charges Pay Point,Central Services to the Public
Swale Borough Council,29UM,14/03/2018,1157849,1115.32,ALLPAY LTD,02933191                 ,REVENUE SERVICES,Bank Charges Pay Point,Central Services to the Public
Swale Borough Council,29UM,14/03/2018,1157849,2.31,ALLPAY LTD,02933191                 ,REVENUE SERVICES,Bank Charges Pay Point,Housing
Swale Borough Council,29UM,14/03/2018,1157849,61.96,ALLPAY LTD,02933191                 ,REVENUE SERVICES,Bank Charges Pay Point,Housing
Swale Borough Council,29UM,14/03/2018,1157849,61.96,ALLPAY LTD,02933191                 ,EXCHEQUER,Bank Charges Pay Point,Internal Trading Cost Centres
Swale Borough Council,29UM,14/03/2018,1157801,1150.00,AYS LTD,                         ,LEISURE & OPEN SPACES,Maintenance - Grounds,Cultural and Related Services
Swale Borough Council,29UM,14/03/2018,1157437,2090.00,B W MAY AND SON LTD,1016572                  ,PLANNING SERVICES,Private Contractors - CIS,Planning and Development Services
Swale Borough Council,29UM,14/03/2018,1157717,300.00,BLENWOOD LTD,4383277                  ,LEISURE & OPEN SPACES,Tree Maintenance,Cultural and Related Services
Swale Borough Council,29UM,14/03/2018,1157810,49585.71,BLENWOOD LTD,4383277                  ,LEISURE & OPEN SPACES,Grounds Contract Variations,Cultural and Related Services
Swale Borough Council,29UM,14/03/2018,1157811,11786.08,BLENWOOD LTD,4383277                  ,LEISURE & OPEN SPACES,Grounds Contract Variations,Cultural and Related Services
Swale Borough Council,29UM,14/03/2018,1157606,7095.00,BLOOM PROCUREMENT SERVICES LTD,08045123                 ,FINANCIAL SERVICES,Capitalised Fees And Charges,Not used in this Structure
Swale Borough Council,29UM,14/03/2018,1157629,500.00,BORDEN FETE COMMITTEE,                         ,ECONOMY & COMMUNITIES,Grants & Subscriptions,Central Services to the Public
Swale Borough Council,29UM,14/03/2018,1157693,2228.33,CHILDREN AND FAMILIES LTD,                         ,COMMUNITY SAFETY,Fees and Services,Planning and Development Services
Swale Borough Council,29UM,14/03/2018,1157694,2228.33,CHILDREN AND FAMILIES LTD,                         ,COMMUNITY SAFETY,Fees and Services,Planning and Development Services
Swale Borough Council,29UM,14/03/2018,1157576,2000.00,CIPFA BUSINESS LTD,2376684                  ,FINANCIAL SERVICES,Payments in Year,Ledger/Suspense Codes
Swale Borough Council,29UM,14/03/2018,1157779,295.00,CIPFA BUSINESS LTD,2376684                  ,REVENUE SERVICES,Fees and Services,Central Services to the Public
Swale Borough Council,29UM,14/03/2018,1157775,250.00,COASTAL BODY REPAIRS,                         ,SERVICE DELIVERY,Hire & Leases,Cultural and Related Services
Swale Borough Council,29UM,14/03/2018,1157695,2944.50,COBALT TELEPHONE TECHNOLOGIES LIMITED,03151938                 ,CAR PARKS,Fees - Licence,Highway and Transport Services
Swale Borough Council,29UM,14/03/2018,1157486,1250.00,CONSIDINE LIMITED,6895573                  ,SERVICE DELIVERY,Private Contractors - CIS,Highway and Transport Services
Swale Borough Council,29UM,14/03/2018,1157516,359.00,CONTRACT SECURITY SERVICES,2461362                  ,EXCHEQUER,Cash Security,Internal Trading Cost Centres
Swale Borough Council,29UM,14/03/2018,1157516,3144.96,CONTRACT SECURITY SERVICES,2461362                  ,CAR PARKS,Cash Security,Highway and Transport Services
Swale Borough Council,29UM,14/03/2018,1157925,9053.00,DAYTRAD LIMITED,7654373                  ,HOUSING SERVICES,Housing Renovation Grants,Not used in this Structure
Swale Borough Council,29UM,14/03/2018,1157710,264.00,DISCLOSURE & BARRING SERVICE (DT),                         ,LICENCING,Fees and Services,Environmental and Regulatory Services
Swale Borough Council,29UM,14/03/2018,1157603,1200.00,FAMILY MOSAIC HOUSING,                         ,HOUSING SERVICES,Staying Put - Materials,Housing
Swale Borough Council,29UM,14/03/2018,1157788,1000.00,FAVERSHAM CRICKET CLUB,                         ,TOURISM & SPORTS DEVELOPMENT,Grants & Subscriptions,Cultural and Related Services
Swale Borough Council,29UM,14/03/2018,1157702,1840.00,FIRST STOP HOUSING SOLUTION LTD,                         ,HOUSING SERVICES,B & B - Homelessness Landlord Payments,Housing
Swale Borough Council,29UM,14/03/2018,1157719,960.00,GORE COURT HOCKEY CLUB,                         ,TOURISM & SPORTS DEVELOPMENT,Grants & Subscriptions,Cultural and Related Services
Swale Borough Council,29UM,14/03/2018,1157865,1718.75,GRAHAM BOULDEN & COMPANY,                         ,CAR PARKS,Rent,Highway and Transport Services
Swale Borough Council,29UM,14/03/2018,1157628,300.00,HERNHILL PARISH COUNCIL,                         ,ECONOMY & COMMUNITIES,Grants & Subscriptions,Central Services to the Public
Swale Borough Council,29UM,14/03/2018,1157698,320.00,HMCTS (DT),                         ,REVENUE SERVICES,Court Costs,Central Services to the Public
Swale Borough Council,29UM,14/03/2018,1157627,500.00,HOSPITAL RADIO SWALE,                         ,ECONOMY & COMMUNITIES,Grants & Subscriptions,Central Services to the Public
Swale Borough Council,29UM,14/03/2018,1157922,7200.00,HUBBARD & HOUGHTON CONSTRUCTION LTD,                         ,HOUSING SERVICES,Housing Renovation Grants,Not used in this Structure
Swale Borough Council,29UM,14/03/2018,1157479,5000.00,INFORM CPI LTD,                         ,REVENUE SERVICES,Payments in Year,Ledger/Suspense Codes
Swale Borough Council,29UM,14/03/2018,1157735,1750.00,J N CLEARANCE,                         ,CONTRACT & PROCUREMENT,"Clearance Of Waste,Fly Tipping",Environmental and Regulatory Services
Swale Borough Council,29UM,14/03/2018,1157689,2367.00,KEEP BRITAIN TIDY,                         ,SERVICE DELIVERY,Prizes/Awards,Cultural and Related Services
Swale Borough Council,29UM,14/03/2018,1157696,5621.00,KENT COUNTY COUNCIL,                         ,FINANCIAL SERVICES,Capitalised Fees And Charges,Not used in this Structure
Swale Borough Council,29UM,14/03/2018,1157796,4601.90,KINGDOM SECURITY LIMITED,2795197                  ,ENVIRONMENTAL RESPONSE TEAM,Fees and Services,Planning and Development Services
Swale Borough Council,29UM,14/03/2018,1157802,500.00,LANDMARK CHAMBERS,                         ,PLANNING SERVICES,Legal Fees,Internal Trading Cost Centres
Swale Borough Council,29UM,14/03/2018,1157814,400.00,LEMAR LIMITED,04350292                 ,SERVICE DELIVERY,Private Contractors - CIS,Highway and Transport Services
Swale Borough Council,29UM,14/03/2018,1157814,80.00,LEMAR LIMITED,04350292                 ,SERVICE DELIVERY,Private Contractors - CIS,Highway and Transport Services
Swale Borough Council,29UM,14/03/2018,1157819,2000.00,LEMAR LIMITED,04350292                 ,CAR PARKS,Maintenance - Grounds,Highway and Transport Services
Swale Borough Council,29UM,14/03/2018,1157819,965.00,LEMAR LIMITED,04350292                 ,CAR PARKS,Maintenance - Grounds,Highway and Transport Services
Swale Borough Council,29UM,14/03/2018,1157820,2000.00,LEMAR LIMITED,04350292                 ,CAR PARKS,Maintenance - Grounds,Highway and Transport Services
Swale Borough Council,29UM,14/03/2018,1157820,898.00,LEMAR LIMITED,04350292                 ,CAR PARKS,Maintenance - Grounds,Highway and Transport Services
Swale Borough Council,29UM,14/03/2018,1157187,2676.00,MAGEES GUESTHOUSE,                         ,HOUSING SERVICES,B & B - Homelessness Landlord Payments,Housing
Swale Borough Council,29UM,14/03/2018,1157351,2543.00,MAGEES GUESTHOUSE,                         ,HOUSING SERVICES,B & B - Homelessness Landlord Payments,Housing
Swale Borough Council,29UM,14/03/2018,1157485,2730.00,MAGEES GUESTHOUSE,                         ,HOUSING SERVICES,B & B - Homelessness Landlord Payments,Housing
Swale Borough Council,29UM,14/03/2018,1157706,62024.63,MAIDSTONE BOROUGH COUNCIL,                         ,HUMAN RESOURCES,MKS Charges for HR Service,Internal Trading Cost Centres
Swale Borough Council,29UM,14/03/2018,1157794,14003.08,MATRIX SCM LTD,2227962                  ,HUMAN RESOURCES,Agency/Contract Staff,Internal Trading Cost Centres
Swale Borough Council,29UM,14/03/2018,1157225,363.20,MEDWAY ACCOMMODATION LIMITED,                         ,HOUSING SERVICES,B & B - Homelessness Landlord Payments,Housing
Swale Borough Council,29UM,14/03/2018,1157225,75.67,MEDWAY ACCOMMODATION LIMITED,                         ,HOUSING SERVICES,B & B - Homelessness Landlord Payments,Housing
Swale Borough Council,29UM,14/03/2018,1157356,307.20,MEDWAY ACCOMMODATION LIMITED,                         ,HOUSING SERVICES,B & B - Homelessness Landlord Payments,Housing
Swale Borough Council,29UM,14/03/2018,1157356,64.00,MEDWAY ACCOMMODATION LIMITED,                         ,HOUSING SERVICES,B & B - Homelessness Landlord Payments,Housing
Swale Borough Council,29UM,14/03/2018,1157542,355.20,MEDWAY ACCOMMODATION LIMITED,                         ,HOUSING SERVICES,B & B - Homelessness Landlord Payments,Housing
Swale Borough Council,29UM,14/03/2018,1157542,74.00,MEDWAY ACCOMMODATION LIMITED,                         ,HOUSING SERVICES,B & B - Homelessness Landlord Payments,Housing
Swale Borough Council,29UM,14/03/2018,1157714,1785.00,MILLSONS VENDING LIMITED,4676810                  ,PROPERTY SERVICES,Equipment Purchase,Corporate & Democratic Core
Swale Borough Council,29UM,14/03/2018,1157355,847.00,REDACTED PERSONAL INFORMATION,                         ,HOUSING SERVICES,B & B - Homelessness Landlord Payments,Housing
Swale Borough Council,29UM,14/03/2018,1157599,325.00,MS SWALE,                         ,ECONOMY & COMMUNITIES,Grants & Subscriptions,Central Services to the Public
Swale Borough Council,29UM,14/03/2018,1157641,494.20,NEW LEAF SUPPORT LTD,                         ,HOUSING SERVICES,B & B - Homelessness Landlord Payments,Housing
Swale Borough Council,29UM,14/03/2018,1157781,560.16,NPOWER,3432100                  ,TOURISM & SPORTS DEVELOPMENT,Electricity,Cultural and Related Services
Swale Borough Council,29UM,14/03/2018,1157635,4296.14,OVENDEN ALLWORKS LIMITED,08052607                 ,SERVICE DELIVERY,Construction,Not used in this Structure
Swale Borough Council,29UM,14/03/2018,1157701,4762.40,P BINNIE CONSULTANCY LTD,07794784                 ,ECONOMIC DEVELOPMENT,Consultancy/Specialist Advice,Planning and Development Services
Swale Borough Council,29UM,14/03/2018,1157011,30544.00,PARAMOUNT INDEPENDENT PROPERTY SERVICES,                         ,HOUSING SERVICES,B & B - Homelessness Landlord Payments,Housing
Swale Borough Council,29UM,14/03/2018,1157959,15697.00,PEAC HOLDINGS (UK) LTD (DT),3088213                  ,LEISURE & OPEN SPACES,Contracts,Cultural and Related Services
Swale Borough Council,29UM,14/03/2018,1157683,290.34,PORTAKABIN LIMITED,685303                   ,LEISURE & OPEN SPACES,Maintenance - Grounds,Environmental and Regulatory Services
Swale Borough Council,29UM,14/03/2018,1157724,795.00,RULE AND RULE,                         ,HOUSING SERVICES,Homelessness  Prevention Services,Housing
Swale Borough Council,29UM,14/03/2018,1157656,375.00,RURAL PLANNING LTD,4426249                  ,PLANNING SERVICES,Fees and Services,Planning and Development Services
Swale Borough Council,29UM,14/03/2018,1157555,440.90,SCOTTISH WATER BUSINESS STREAM LTD,SC294924                 ,PROPERTY SERVICES,Water - Metered,Corporate & Democratic Core
Swale Borough Council,29UM,14/03/2018,1157555,714.10,SCOTTISH WATER BUSINESS STREAM LTD,SC294924                 ,PROPERTY SERVICES,Water - Metered,Corporate & Democratic Core
Swale Borough Council,29UM,14/03/2018,1157555,18.62,SCOTTISH WATER BUSINESS STREAM LTD,SC294924                 ,PROPERTY SERVICES,Water - Metered,Corporate & Democratic Core
Swale Borough Council,29UM,14/03/2018,1157783,1784.81,SCOTTISH WATER BUSINESS STREAM LTD,SC294924                 ,CONTRACT & PROCUREMENT,Water - Metered,Environmental and Regulatory Services
Swale Borough Council,29UM,14/03/2018,1157822,767.94,SCOTTISH WATER BUSINESS STREAM LTD,SC294924                 ,CONTRACT & PROCUREMENT,Water - Metered,Environmental and Regulatory Services
Swale Borough Council,29UM,14/03/2018,1157823,430.52,SCOTTISH WATER BUSINESS STREAM LTD,SC294924                 ,CONTRACT & PROCUREMENT,Water - Metered,Environmental and Regulatory Services
Swale Borough Council,29UM,14/03/2018,1157846,1525.25,SCOTTISH WATER BUSINESS STREAM LTD,SC294924                 ,CONTRACT & PROCUREMENT,Water - Metered,Environmental and Regulatory Services
Swale Borough Council,29UM,14/03/2018,1157958,2968.00,SERCO PAISA LTD - (DT),04908482                 ,LEISURE & OPEN SPACES,Contracts,Cultural and Related Services
Swale Borough Council,29UM,14/03/2018,1157871,300.00,SHARPE PRITCHARD,OC378650                 ,PLANNING SERVICES,Legal Fees,Planning and Development Services
Swale Borough Council,29UM,14/03/2018,1157872,400.00,SHARPE PRITCHARD,OC378650                 ,PLANNING SERVICES,Legal Fees,Planning and Development Services
Swale Borough Council,29UM,14/03/2018,1157831,700.00,SHEERNESS EAST YOUTH FOOTBALL CLUB,                         ,TOURISM & SPORTS DEVELOPMENT,Grants & Subscriptions,Cultural and Related Services
Swale Borough Council,29UM,14/03/2018,1156880,1811.70,SODEXO MOTIVATION SOLUTIONS UK LTD,02680629                 ,HUMAN RESOURCES,Fees and Services,Corporate & Democratic Core
Swale Borough Council,29UM,14/03/2018,1157784,37.56,SODEXO MOTIVATION SOLUTIONS UK LTD,2680629                  ,HUMAN RESOURCES,Fees and Services,Corporate & Democratic Core
Swale Borough Council,29UM,14/03/2018,1157727,353.07,SOUTHERN COMMUNICATIONS LTD,1328040                  ,MKS ICT,Telephone,Corporate & Democratic Core
Swale Borough Council,29UM,14/03/2018,1157863,206574.60,SPIRIT OF SITTINGBOURNE LLP,OC377168                 ,FINANCIAL SERVICES,STC - Capitalised Fees And Charges,Not used in this Structure
Swale Borough Council,29UM,14/03/2018,1157868,1111.35,SSAFA FORCES HELP,                         ,DEMOCRATIC & ELECTORAL SERVICES,Payments in Year,Ledger/Suspense Codes
Swale Borough Council,29UM,14/03/2018,1157713,300.00,STEPPING STONES PRESCHOOL,                         ,ECONOMY & COMMUNITIES,Grants & Subscriptions,Central Services to the Public
Swale Borough Council,29UM,14/03/2018,1157720,500.00,SWALE CRICKET ASSOCIATION,                         ,TOURISM & SPORTS DEVELOPMENT,Grants & Subscriptions,Cultural and Related Services
Swale Borough Council,29UM,14/03/2018,1157349,20000.00,SWECO UK LTD,2888385                  ,PLANNING SERVICES,Fees and Services,Planning and Development Services
Swale Borough Council,29UM,14/03/2018,1157716,282.95,TEAMSTRIDES LTD,                         ,ECONOMY & COMMUNITIES,Communities Fund Expenditure,Ledger/Suspense Codes
Swale Borough Council,29UM,14/03/2018,1157646,1425.00,THE OYSTER PARTNERSHIP,05020374                 ,PLANNING SERVICES,Agency/Contract Staff,Planning and Development Services
Swale Borough Council,29UM,14/03/2018,1157795,1368.00,THE OYSTER PARTNERSHIP,05020374                 ,PLANNING SERVICES,Agency/Contract Staff,Planning and Development Services
Swale Borough Council,29UM,14/03/2018,1157869,1111.35,THE PERTHES ASSOCIATION,                         ,DEMOCRATIC & ELECTORAL SERVICES,Payments in Year,Ledger/Suspense Codes
Swale Borough Council,29UM,14/03/2018,1157657,368.00,THOMSON REUTERS,1679046                  ,MKS LEGAL SERVICES,"Books, Journals & e - resources",Internal Trading Cost Centres
Swale Borough Council,29UM,14/03/2018,1157374,690.00,TRAFALGAR TAVERN LTD,07999329                 ,HOUSING SERVICES,B & B - Homelessness Landlord Payments,Housing
Swale Borough Council,29UM,14/03/2018,1157826,792.00,TRAFALGAR TAVERN LTD,07999329                 ,HOUSING SERVICES,B & B - Homelessness Landlord Payments,Housing
Swale Borough Council,29UM,14/03/2018,1157512,-33.19,UNISON,                         ,HUMAN RESOURCES,Payroll - Unison Deductions Admin Charge,Corporate & Democratic Core
Swale Borough Council,29UM,14/03/2018,1157774,760.00,VISIT KENT,                         ,TOURISM & SPORTS DEVELOPMENT,Fees and Services,Cultural and Related Services
Swale Borough Council,29UM,14/03/2018,1157257,350.00,WILLOW TREE HOME SOLUTIONS LTD,                         ,HOUSING SERVICES,Staying Put small repairs (contractors),Housing
Swale Borough Council,29UM,14/03/2018,1157527,322.00,WILLOW TREE HOME SOLUTIONS LTD,                         ,HOUSING SERVICES,Staying Put small repairs (contractors),Housing
Swale Borough Council,29UM,14/03/2018,1157528,330.00,WILLOW TREE HOME SOLUTIONS LTD,                         ,HOUSING SERVICES,Staying Put small repairs (contractors),Housing
Swale Borough Council,29UM,14/03/2018,1157533,300.00,WILLOW TREE HOME SOLUTIONS LTD,                         ,HOUSING SERVICES,Staying Put small repairs (contractors),Housing
Swale Borough Council,29UM,14/03/2018,1157534,300.00,WILLOW TREE HOME SOLUTIONS LTD,                         ,HOUSING SERVICES,Staying Put small repairs (contractors),Housing
Swale Borough Council,29UM,14/03/2018,1157636,416.67,WILLOW TREE HOME SOLUTIONS LTD,                         ,HOUSING SERVICES,Staying Put small repairs (contractors),Housing
Swale Borough Council,29UM,14/03/2018,1157637,335.60,WILLOW TREE HOME SOLUTIONS LTD,                         ,HOUSING SERVICES,Staying Put small repairs (contractors),Housing
Swale Borough Council,29UM,14/03/2018,1157773,2499.90,WYBONE LTD,952455                   ,CONTRACT & PROCUREMENT,Equipment Purchase,Environmental and Regulatory Services
Swale Borough Council,29UM,14/03/2018,1157857,595.00,WYNNE-WILLIAMS ASSOCIATES LTD,5148770                  ,LEISURE & OPEN SPACES,Consultancy/Specialist Advice,Cultural and Related Services
Swale Borough Council,29UM,14/03/2018,1157630,465.00,X - QUEENBOROUGH C P SCHOOL,                         ,ECONOMY & COMMUNITIES,Grants & Subscriptions,Central Services to the Public
Swale Borough Council,29UM,21/03/2018,1157840,400.00,7TH FAVERSHAM SCOUT GROUP,                         ,ECONOMY & COMMUNITIES,Grants & Subscriptions,Central Services to the Public
Swale Borough Council,29UM,21/03/2018,1158013,400.00,A.C MACKLIN FENCING,10311550                 ,LEISURE & OPEN SPACES,Maintenance - Grounds,Cultural and Related Services
Swale Borough Council,29UM,21/03/2018,1158013,80.00,A.C MACKLIN FENCING,10311550                 ,LEISURE & OPEN SPACES,Maintenance - Grounds,Cultural and Related Services
Swale Borough Council,29UM,21/03/2018,1158084,794.34,ACORN MAINTENANCE SERVICES,3546898                  ,HOUSING SERVICES,Housing Renovation Grants,Not used in this Structure
Swale Borough Council,29UM,21/03/2018,1157715,277.04,ADELANTE SOFTWARE LTD,4450760                  ,REVENUE SERVICES,Bank Charges Pay Point,Central Services to the Public
Swale Borough Council,29UM,21/03/2018,1157715,15.35,ADELANTE SOFTWARE LTD,4450760                  ,REVENUE SERVICES,Bank Charges Pay Point,Housing
Swale Borough Council,29UM,21/03/2018,1157715,15.35,ADELANTE SOFTWARE LTD,4450760                  ,EXCHEQUER,Commission Paid,Internal Trading Cost Centres
Swale Borough Council,29UM,21/03/2018,1157911,311.13,ADELANTE SOFTWARE LTD,4450760                  ,REVENUE SERVICES,Commission Paid,Central Services to the Public
Swale Borough Council,29UM,21/03/2018,1157911,18.30,ADELANTE SOFTWARE LTD,4450760                  ,REVENUE SERVICES,Commission Paid,Housing
Swale Borough Council,29UM,21/03/2018,1157911,36.51,ADELANTE SOFTWARE LTD,4450760                  ,EXCHEQUER,Commission Paid,Internal Trading Cost Centres
Swale Borough Council,29UM,21/03/2018,1157973,40.56,ALLSTAR BUSINESS SOLUTIONS LTD - (DT),1073098                  ,DEMOCRATIC & ELECTORAL SERVICES,Petrol/Derv & Oil,Corporate & Democratic Core
Swale Borough Council,29UM,21/03/2018,1157973,242.93,ALLSTAR BUSINESS SOLUTIONS LTD - (DT),1073098                  ,ENVIRONMENTAL RESPONSE TEAM,Fuel For Contract Vehicles,Internal Trading Cost Centres
Swale Borough Council,29UM,21/03/2018,1157973,72.25,ALLSTAR BUSINESS SOLUTIONS LTD - (DT),1073098                  ,LEISURE & OPEN SPACES,Fuel For Contract Vehicles,Cultural and Related Services
Swale Borough Council,29UM,21/03/2018,1158082,5341.00,ASTOR BANNERMAN (MEDICAL) LTD,                         ,HOUSING SERVICES,Housing Renovation Grants,Not used in this Structure
Swale Borough Council,29UM,21/03/2018,1157839,750.00,BENSTEDS CHARITY WAR MEMORIAL FUND,                         ,TOURISM & SPORTS DEVELOPMENT,Grants & Subscriptions,Cultural and Related Services
Swale Borough Council,29UM,21/03/2018,1157730,3999.20,BERWIN LEIGHTON PAISNER LLP,                         ,PLANNING SERVICES,Fees and Services,Planning and Development Services
Swale Borough Council,29UM,21/03/2018,1158008,311.89,BLENWOOD LTD,4383277                  ,LEISURE & OPEN SPACES,Maintenance - Grounds,Cultural and Related Services
Swale Borough Council,29UM,21/03/2018,1157985,950.00,BLUE TOWN REMEMBERED,                         ,ECONOMY & COMMUNITIES,Grants & Subscriptions,Central Services to the Public
Swale Borough Council,29UM,21/03/2018,1157841,1100.00,BORDEN SPORTS ASSOCIATION,                         ,ECONOMY & COMMUNITIES,Grants & Subscriptions,Central Services to the Public
Swale Borough Council,29UM,21/03/2018,1157878,100.00,CASEMENT SIGNS & GRAPHICS,                         ,TOURISM & SPORTS DEVELOPMENT,Private Contractors - CIS,Trading Undertaking
Swale Borough Council,29UM,21/03/2018,1157878,207.56,CASEMENT SIGNS & GRAPHICS,                         ,TOURISM & SPORTS DEVELOPMENT,Private Contractors - CIS,Trading Undertaking
Swale Borough Council,29UM,21/03/2018,1157690,5835.00,CBS MAINTENANCE SERVICES LTD,                         ,PROPERTY SERVICES,Non-Planned Building Maintenance,Corporate & Democratic Core
Swale Borough Council,29UM,21/03/2018,1157691,1815.00,CBS MAINTENANCE SERVICES LTD,                         ,PROPERTY SERVICES,Buildings Maintenance,Corporate & Democratic Core
Swale Borough Council,29UM,21/03/2018,1158047,3333.33,CHALKWELL COACH HIRE LTD,2520842                  ,PLANNING SERVICES,Payments in Year,Ledger/Suspense Codes
Swale Borough Council,29UM,21/03/2018,1157864,375.00,CHURCH JESUS CHRIST LATTER DAY ST,                         ,PROPERTY SERVICES,Rent,Corporate & Democratic Core
Swale Borough Council,29UM,21/03/2018,1157976,1310.00,CLEAR CHANNEL UK LTD,                         ,ENVIRONMENTAL RESPONSE TEAM,Advertising & Promo - Ext Fund by Grant & Other Income,Planning and Development Services
Swale Borough Council,29UM,21/03/2018,1158081,9756.50,COLDWELL CONSTRUCTION LTD,4814340                  ,HOUSING SERVICES,Housing Renovation Grants,Not used in this Structure
Swale Borough Council,29UM,21/03/2018,1157998,265.46,COUNTRYWIDE ESTATE AGENTS,                         ,CAR PARKS,Season Tickets,Highway and Transport Services
Swale Borough Council,29UM,21/03/2018,1158087,1430.82,DAYTRAD LIMITED,7654373                  ,HOUSING SERVICES,Housing Renovation Grants,Not used in this Structure
Swale Borough Council,29UM,21/03/2018,1158085,13950.00,DOLPHIN STAIRLIFTS (KENT),04181846                 ,HOUSING SERVICES,Housing Renovation Grants,Not used in this Structure
Swale Borough Council,29UM,21/03/2018,1158086,12500.00,DOLPHIN STAIRLIFTS (KENT),04181846                 ,HOUSING SERVICES,Housing Renovation Grants,Not used in this Structure
Swale Borough Council,29UM,21/03/2018,1157909,42500.00,DTZ TESCO STORES THE FORUM (RENT),                         ,CAR PARKS,Rent,Highway and Transport Services
Swale Borough Council,29UM,21/03/2018,1157909,8500.00,DTZ TESCO STORES THE FORUM (RENT),                         ,CAR PARKS,Rent,Highway and Transport Services
Swale Borough Council,29UM,21/03/2018,1157859,8480.72,EXACOM SYSTEMS LTD,07356515                 ,PLANNING SERVICES,Payments in Year,Ledger/Suspense Codes
Swale Borough Council,29UM,21/03/2018,1157729,3000.00,GEN2 PROPERTY LIMITED,09834851                 ,PROPERTY SERVICES,Consultancy/Specialist Advice,Internal Trading Cost Centres
Swale Borough Council,29UM,21/03/2018,1157986,450.00,GREEN CUBE CIC,                         ,ECONOMY & COMMUNITIES,Grants & Subscriptions,Central Services to the Public
Swale Borough Council,29UM,21/03/2018,1158089,2470.00,HIGHER ELEVATION LTD,                         ,HOUSING SERVICES,Housing Renovation Grants,Not used in this Structure
Swale Borough Council,29UM,21/03/2018,1157989,600.00,HISTORICAL RESEARCH GRP OF S'BOURNE,                         ,TOURISM & SPORTS DEVELOPMENT,Grants & Subscriptions,Cultural and Related Services
Swale Borough Council,29UM,21/03/2018,1157789,500.00,HOLY TRINITY MILTON REGIS BELL RINGERS,                         ,ECONOMY & COMMUNITIES,Grants & Subscriptions,Central Services to the Public
Swale Borough Council,29UM,21/03/2018,1157993,492.00,HUBBARD & HOUGHTON CONSTRUCTION LTD,                         ,HOUSING SERVICES,Staying Put small repairs (contractors),Housing
Swale Borough Council,29UM,21/03/2018,1158083,415.00,HUBBARD & HOUGHTON CONSTRUCTION LTD,                         ,HOUSING SERVICES,Housing Renovation Grants,Not used in this Structure
Swale Borough Council,29UM,21/03/2018,1157205,300.00,KENT COUNTY COUNCIL,                         ,ECONOMY & COMMUNITIES,Grants & Subscriptions,Central Services to the Public
Swale Borough Council,29UM,21/03/2018,1157206,300.00,KENT COUNTY COUNCIL,                         ,ECONOMY & COMMUNITIES,Grants & Subscriptions,Central Services to the Public
Swale Borough Council,29UM,21/03/2018,1157860,10000.00,KENT COUNTY COUNCIL,                         ,LEISURE & OPEN SPACES,Grants & Subscriptions,Cultural and Related Services
Swale Borough Council,29UM,21/03/2018,1157860,1000.00,KENT COUNTY COUNCIL,                         ,LEISURE & OPEN SPACES,Grants & Subscriptions,Cultural and Related Services
Swale Borough Council,29UM,21/03/2018,1157927,2912.82,KENT COUNTY COUNCIL,                         ,PLANNING SERVICES,Payments in Year,Ledger/Suspense Codes
Swale Borough Council,29UM,21/03/2018,1157927,1209.40,KENT COUNTY COUNCIL,                         ,PLANNING SERVICES,Payments in Year,Ledger/Suspense Codes
Swale Borough Council,29UM,21/03/2018,1157927,8731.48,KENT COUNTY COUNCIL,                         ,PLANNING SERVICES,Payments in Year,Ledger/Suspense Codes
Swale Borough Council,29UM,21/03/2018,1157927,8727.19,KENT COUNTY COUNCIL,                         ,PLANNING SERVICES,Payments in Year,Ledger/Suspense Codes
Swale Borough Council,29UM,21/03/2018,1157927,5369.97,KENT COUNTY COUNCIL,                         ,PLANNING SERVICES,Payments in Year,Ledger/Suspense Codes
Swale Borough Council,29UM,21/03/2018,1157937,36813.93,KENT COUNTY COUNCIL,                         ,PLANNING SERVICES,Payments in Year,Ledger/Suspense Codes
Swale Borough Council,29UM,21/03/2018,1157937,344.94,KENT COUNTY COUNCIL,                         ,PLANNING SERVICES,Payments in Year,Ledger/Suspense Codes
Swale Borough Council,29UM,21/03/2018,1157937,561.32,KENT COUNTY COUNCIL,                         ,PLANNING SERVICES,Payments in Year,Ledger/Suspense Codes
Swale Borough Council,29UM,21/03/2018,1157937,556.17,KENT COUNTY COUNCIL,                         ,PLANNING SERVICES,Payments in Year,Ledger/Suspense Codes
Swale Borough Council,29UM,21/03/2018,1157937,441.95,KENT COUNTY COUNCIL,                         ,PLANNING SERVICES,Payments in Year,Ledger/Suspense Codes
Swale Borough Council,29UM,21/03/2018,1157845,3994.18,KENT COUNTY COUNCIL (KCS),                         ,PROPERTY SERVICES,Electricity,Corporate & Democratic Core
Swale Borough Council,29UM,21/03/2018,1157866,3774.22,KENT COUNTY COUNCIL (KCS),                         ,PROPERTY SERVICES,Gas,Corporate & Democratic Core
Swale Borough Council,29UM,21/03/2018,1158024,2000.00,LANDMARK CHAMBERS,                         ,PLANNING SERVICES,Legal Fees,Planning and Development Services
Swale Borough Council,29UM,21/03/2018,1158025,750.00,LINX COMMUNICATIONS LTD,                         ,MKS ICT,Telephone,Corporate & Democratic Core
Swale Borough Council,29UM,21/03/2018,1157803,2161.21,MAIDSTONE BOROUGH COUNCIL,                         ,MKS ICT,Computer Equipment & Materials,Internal Trading Cost Centres
Swale Borough Council,29UM,21/03/2018,1157963,373.14,MAIDSTONE BOROUGH COUNCIL,                         ,MKS ICT,Equipment Rental,Holding Codes
Swale Borough Council,29UM,21/03/2018,1158002,17395.00,MAIDSTONE BOROUGH COUNCIL,                         ,REVENUE SERVICES,MKS Fraud Partnership Charges,Housing
Swale Borough Council,29UM,21/03/2018,1158121,869839.00,MAIDSTONE BOROUGH COUNCIL - DT,                         ,FINANCIAL SERVICES,Tariff to Gvt,Taxation and Non-Specific Grant Income
Swale Borough Council,29UM,21/03/2018,1157962,18685.18,MATRIX SCM LTD,2227962                  ,HUMAN RESOURCES,Agency/Contract Staff,Internal Trading Cost Centres
Swale Borough Council,29UM,21/03/2018,1157907,527.00,MAYLOW CONSTRUCTION LTD,                         ,LEISURE & OPEN SPACES,Maintenance - Grounds,Cultural and Related Services
Swale Borough Council,29UM,21/03/2018,1157907,2764.00,MAYLOW CONSTRUCTION LTD,                         ,LEISURE & OPEN SPACES,Maintenance - Grounds,Cultural and Related Services
Swale Borough Council,29UM,21/03/2018,1158023,448.00,MAYLOW CONSTRUCTION LTD,                         ,LEISURE & OPEN SPACES,Maintenance - Grounds,Environmental and Regulatory Services
Swale Borough Council,29UM,21/03/2018,1158048,4916.00,MAYLOW CONSTRUCTION LTD,                         ,LEISURE & OPEN SPACES,Maintenance - Grounds,Cultural and Related Services
Swale Borough Council,29UM,21/03/2018,1158064,4917.00,MAYLOW CONSTRUCTION LTD,                         ,LEISURE & OPEN SPACES,Maintenance - Grounds,Cultural and Related Services
Swale Borough Council,29UM,21/03/2018,1157726,17434.56,MONITOR CLEANING SERVICES LTD,02526388                 ,CONTRACT & PROCUREMENT,Private Contractors,Environmental and Regulatory Services
Swale Borough Council,29UM,21/03/2018,1158039,295.00,MORGANA SYSTEMS LTD,1335506                  ,PROPERTY SERVICES,Equipment Maintenance,Internal Trading Cost Centres
Swale Borough Council,29UM,21/03/2018,1157887,225.00,REDACTED PERSONAL INFORMATION,                         ,ENVIRONMENTAL RESPONSE TEAM,Legal Fees,Planning and Development Services
Swale Borough Council,29UM,21/03/2018,1157887,45.00,REDACTED PERSONAL INFORMATION,                         ,ENVIRONMENTAL RESPONSE TEAM,Legal Fees,Planning and Development Services
Swale Borough Council,29UM,21/03/2018,1157908,350.00,MR J W GATES,                         ,SERVICE DELIVERY,Maintenance - Grounds,Cultural and Related Services
Swale Borough Council,29UM,21/03/2018,1158026,850.00,REDACTED PERSONAL INFORMATION,                         ,HOUSING SERVICES,RDS - Landlord claim on Bond Scheme,Housing
Swale Borough Council,29UM,21/03/2018,1158063,605.00,REDACTED PERSONAL INFORMATION,                         ,COMMUNITY SAFETY,Maintenance - Grounds,Environmental and Regulatory Services
Swale Borough Council,29UM,21/03/2018,1157843,264.64,NPOWER,                         ,CAR PARKS,Electricity,Highway and Transport Services
Swale Borough Council,29UM,21/03/2018,1158014,6250.00,ONE TEAM LOGIC LTD,09075059                 ,COMMUNITY SAFETY,Performance Fund Expenditure,Ledger/Suspense Codes
Swale Borough Council,29UM,21/03/2018,1157992,1837.50,P BINNIE CONSULTANCY LTD,07794784                 ,ECONOMIC DEVELOPMENT,Consultancy/Specialist Advice,Planning and Development Services
Swale Borough Council,29UM,21/03/2018,1157981,423.80,PREMIER PAPER GROUP LTD,                         ,PROPERTY SERVICES,Paper,Internal Trading Cost Centres
Swale Borough Council,29UM,21/03/2018,1157870,554.00,PRIMESIGHT,1847728                  ,ECONOMIC DEVELOPMENT,Advertising & Promo - Ext Fund by Grant & Other Income,Planning and Development Services
Swale Borough Council,29UM,21/03/2018,1157982,554.00,PRIMESIGHT,1847728                  ,ENVIRONMENTAL RESPONSE TEAM,Advertising & Promo - Ext Fund by Grant & Other Income,Planning and Development Services
Swale Borough Council,29UM,21/03/2018,1158127,81.94,RBS PURCHASING CARD (DT) - SAINSBURY'S,,TOURISM & SPORTS DEVELOPMENT,Catering Provision,Internal Trading Cost Centres
Swale Borough Council,29UM,21/03/2018,1158127,2.49,RBS PURCHASING CARD (DT) - FACEBOOK,,POLICY,Advertising & Promotion,Internal Trading Cost Centres
Swale Borough Council,29UM,21/03/2018,1158127,3.91,RBS PURCHASING CARD (DT) - AMAZON,,TOURISM & SPORTS DEVELOPMENT,Communities Fund Expenditure,Ledger/Suspense Codes
Swale Borough Council,29UM,21/03/2018,1158127,5.35,RBS PURCHASING CARD (DT) - AMAZON,,TOURISM & SPORTS DEVELOPMENT,Communities Fund Expenditure,Ledger/Suspense Codes
Swale Borough Council,29UM,21/03/2018,1158127,33.94,RBS PURCHASING CARD (DT) - AMAZON,,TOURISM & SPORTS DEVELOPMENT,Communities Fund Expenditure,Ledger/Suspense Codes
Swale Borough Council,29UM,21/03/2018,1158127,17.04,RBS PURCHASING CARD (DT) - AMAZON,,TOURISM & SPORTS DEVELOPMENT,Communities Fund Expenditure,Ledger/Suspense Codes
Swale Borough Council,29UM,21/03/2018,1158127,3.09,RBS PURCHASING CARD (DT) - AMAZON,,TOURISM & SPORTS DEVELOPMENT,Communities Fund Expenditure,Ledger/Suspense Codes
Swale Borough Council,29UM,21/03/2018,1158127,40.00,RBS PURCHASING CARD (DT) - FACEBOOK,,POLICY,Advertising & Promotion,Internal Trading Cost Centres
Swale Borough Council,29UM,21/03/2018,1158128,90.94,RBS PURCHASING CARD (DT) - ONLINE REALITY,,COMMISSIONING & CUSTOMER CONTACT,Furniture,Internal Trading Cost Centres
Swale Borough Council,29UM,21/03/2018,1158128,32.89,RBS PURCHASING CARD (DT) - THIRSTY CUPS,,PROPERTY SERVICES,Equipment Purchase,Corporate & Democratic Core
Swale Borough Council,29UM,21/03/2018,1158128,124.00,RBS PURCHASING CARD (DT) - SITEBOX ADMIN,,PROPERTY SERVICES,Equipment Purchase,Corporate & Democratic Core
Swale Borough Council,29UM,21/03/2018,1158129,0.49,RBS PURCHASING CARD (DT) - ICELAND,,DEMOCRATIC & ELECTORAL SERVICES,Hospitality Allowance - Mayor,Corporate & Democratic Core
Swale Borough Council,29UM,21/03/2018,1158132,46.00,RBS PURCHASING CARD (DT) - BAILEYS,,MKS ENVIRONMENTAL SERVICES ,Catering Provision,Internal Trading Cost Centres
Swale Borough Council,29UM,21/03/2018,1158132,3.50,RBS PURCHASING CARD (DT) - ICELAND,,FINANCIAL SERVICES,Catering Provision,Internal Trading Cost Centres
Swale Borough Council,29UM,21/03/2018,1158132,149.00,RBS PURCHASING CARD (DT) - INGRAM IMAGE LTD,,POLICY,Materials - Artwork,Internal Trading Cost Centres
Swale Borough Council,29UM,21/03/2018,1158132,35.00,RBS PURCHASING CARD (DT) - ICO,,DIRECTOR OF CORPORATE SERVICES,Members - Outside Bodies Allowance,Corporate & Democratic Core
Swale Borough Council,29UM,21/03/2018,1158133,13.00,RBS PURCHASING CARD (DT) - TESCO,                         ,HOUSING SERVICES,General Maintenance,Housing
Swale Borough Council,29UM,21/03/2018,1158133,451.67,RBS PURCHASING CARD (DT) - CONISTON HOTEL,                         ,HOUSING SERVICES,B & B - Homelessness Landlord Payments,Housing
Swale Borough Council,29UM,21/03/2018,1158133,204.17,RBS PURCHASING CARD (DT) - CONISTON HOTEL,                         ,HOUSING SERVICES,B & B - Homelessness Landlord Payments,Housing
Swale Borough Council,29UM,21/03/2018,1158133,113.33,RBS PURCHASING CARD (DT) - CONISTON HOTEL,                         ,HOUSING SERVICES,B & B - Homelessness Landlord Payments,Housing
Swale Borough Council,29UM,21/03/2018,1158133,451.67,RBS PURCHASING CARD (DT) - CONISTON HOTEL,                         ,HOUSING SERVICES,B & B - Homelessness Landlord Payments,Housing
Swale Borough Council,29UM,21/03/2018,1158133,280.83,RBS PURCHASING CARD (DT) - CONISTON HOTEL,                         ,HOUSING SERVICES,B & B - Homelessness Landlord Payments,Housing
Swale Borough Council,29UM,21/03/2018,1158134,224.10,RBS PURCHASING CARD (DT) - EMAP SUBSCRIPTIONS,,CHIEF EXECUTIVE,Grants & Subscriptions,Internal Trading Cost Centres
Swale Borough Council,29UM,21/03/2018,1158134,6.66,RBS PURCHASING CARD (DT) - VOLTHUT,,CHIEF EXECUTIVE,Stationery,Internal Trading Cost Centres
Swale Borough Council,29UM,21/03/2018,1158135,70.00,RBS PURCHASING CARD (DT) - GOODWIN PEST MANAGEMENT,,REVENUE SERVICES,Fees and Services,Housing
Swale Borough Council,29UM,21/03/2018,1158135,62.50,RBS PURCHASING CARD (DT) - MERCURE HOTELS,,REVENUE SERVICES,Conference,Central Services to the Public
Swale Borough Council,29UM,21/03/2018,1158135,18.59,RBS PURCHASING CARD (DT) - AMAZON,,REVENUE SERVICES,Stationery,Housing
Swale Borough Council,29UM,21/03/2018,1158136,1191.00,RBS PURCHASING CARD (DT) - HMCTS,                         ,REVENUE SERVICES,Court Costs,Central Services to the Public
Swale Borough Council,29UM,21/03/2018,1158136,408.00,RBS PURCHASING CARD (DT) - HMCTS,                         ,REVENUE SERVICES,Court Costs,Central Services to the Public
Swale Borough Council,29UM,21/03/2018,1158138,70.00,RBS PURCHASING CARD (DT) - THE RAMP PEOPLE,                         ,HOUSING SERVICES,Staying Put - Materials,Housing
Swale Borough Council,29UM,21/03/2018,1158138,9.98,RBS PURCHASING CARD (DT) - WH SMITH,                         ,HOUSING SERVICES,Staying Put - Materials,Housing
Swale Borough Council,29UM,21/03/2018,1158138,64.54,RBS PURCHASING CARD (DT) - BUNNINGS WAREHOUSE,                         ,HOUSING SERVICES,Staying Put - Materials,Housing
Swale Borough Council,29UM,21/03/2018,1158138,6.24,RBS PURCHASING CARD (DT) - WICKES,                         ,HOUSING SERVICES,Staying Put - Materials,Housing
Swale Borough Council,29UM,21/03/2018,1158138,45.79,RBS PURCHASING CARD (DT) - BUNNINGS WAREHOUSE,                         ,HOUSING SERVICES,Staying Put - Materials,Housing
Swale Borough Council,29UM,21/03/2018,1158138,76.20,RBS PURCHASING CARD (DT) - BREWERS,                         ,HOUSING SERVICES,Staying Put - Materials,Housing
Swale Borough Council,29UM,21/03/2018,1158138,73.01,RBS PURCHASING CARD (DT) - ASDA,                         ,HOUSING SERVICES,Fuel For Contract Vehicles,Housing
Swale Borough Council,29UM,21/03/2018,1158138,49.73,RBS PURCHASING CARD (DT) - WICKES,                         ,HOUSING SERVICES,Staying Put - Materials,Housing
Swale Borough Council,29UM,21/03/2018,1158138,164.00,RBS PURCHASING CARD (DT) - A2 TYRE SUPPLIES LTD,                         ,HOUSING SERVICES,Hire & Leases,Housing
Swale Borough Council,29UM,21/03/2018,1158138,4.00,RBS PURCHASING CARD (DT) - WILKO,                         ,HOUSING SERVICES,Staying Put - Materials,Housing
Swale Borough Council,29UM,21/03/2018,1158139,29.99,RBS PURCHASING CARD (DT) - AMAZON,,MKS LEGAL SERVICES,Equipment Purchase,Internal Trading Cost Centres
Swale Borough Council,29UM,21/03/2018,1158139,29.99,RBS PURCHASING CARD (DT) - AMAZON,,MKS LEGAL SERVICES,Equipment Purchase,Internal Trading Cost Centres
Swale Borough Council,29UM,21/03/2018,1158139,29.99,RBS PURCHASING CARD (DT) - AMAZON,,MKS LEGAL SERVICES,Equipment Purchase,Internal Trading Cost Centres
Swale Borough Council,29UM,21/03/2018,1158139,41.65,RBS PURCHASING CARD (DT) - CILEX LAW SCHOOL,,MKS LEGAL SERVICES,"Books, Journals & e - resources",Internal Trading Cost Centres
Swale Borough Council,29UM,21/03/2018,1158139,41.65,RBS PURCHASING CARD (DT) - CILEX LAW SCHOOL,,MKS LEGAL SERVICES,"Books, Journals & e - resources",Internal Trading Cost Centres
Swale Borough Council,29UM,21/03/2018,1158139,35.00,RBS PURCHASING CARD (DT) - MONEYCLAIM.GOV,,MKS LEGAL SERVICES,Court Costs,Internal Trading Cost Centres
Swale Borough Council,29UM,21/03/2018,1158139,35.00,RBS PURCHASING CARD (DT) - MONEYCLAIM.GOV,,MKS LEGAL SERVICES,Court Costs,Internal Trading Cost Centres
Swale Borough Council,29UM,21/03/2018,1158140,6.00,RBS PURCHASING CARD (DT) - DART CHARGE,,ENVIRONMENTAL RESPONSE TEAM,Fees and Services,Internal Trading Cost Centres
Swale Borough Council,29UM,21/03/2018,1158141,17.00,RBS PURCHASING CARD (DT) - M&J SUPPLIES,,COMMISSIONING & CUSTOMER CONTACT,Non-Planned Building Maintenance,Environmental and Regulatory Services
Swale Borough Council,29UM,21/03/2018,1158141,53.33,RBS PURCHASING CARD (DT) - WICKES,,PROPERTY SERVICES,Non-Planned Building Maintenance,Corporate & Democratic Core
Swale Borough Council,29UM,21/03/2018,1158141,8.97,RBS PURCHASING CARD (DT) - ARGOS,,PROPERTY SERVICES,Equipment Purchase,Corporate & Democratic Core
Swale Borough Council,29UM,21/03/2018,1158141,20.81,RBS PURCHASING CARD (DT) - BUNNINGS WAREHOUSE,,HOUSING SERVICES,General Maintenance,Housing
Swale Borough Council,29UM,21/03/2018,1158141,5.98,RBS PURCHASING CARD (DT) - ARGOS,,TOURISM & SPORTS DEVELOPMENT,Equipment Purchase,Cultural and Related Services
Swale Borough Council,29UM,21/03/2018,1157711,1910.00,REARDON PROPERTIES,                         ,HOUSING SERVICES,B & B - Homelessness Landlord Payments,Housing
Swale Borough Council,29UM,21/03/2018,1157798,1710.00,REARDON PROPERTIES,                         ,HOUSING SERVICES,B & B - Homelessness Landlord Payments,Housing
Swale Borough Council,29UM,21/03/2018,1157983,1500.00,RODMERSHAM PARISH COUNCIL,                         ,ECONOMY & COMMUNITIES,Grants & Subscriptions,Central Services to the Public
Swale Borough Council,29UM,21/03/2018,1158035,1293.01,ROYAL MAIL GROUP LTD,4138203                  ,PROPERTY SERVICES,Postage,Holding Codes
Swale Borough Council,29UM,21/03/2018,1158053,795.00,RULE AND RULE,                         ,HOUSING SERVICES,Homelessness  Prevention Services,Housing
Swale Borough Council,29UM,21/03/2018,1158027,550.00,S & P LETTING,                         ,HOUSING SERVICES,RDS - Landlord claim on Bond Scheme,Housing
Swale Borough Council,29UM,21/03/2018,1157999,750.00,SELLING CRICKET CLUB,                         ,TOURISM & SPORTS DEVELOPMENT,Grants & Subscriptions,Cultural and Related Services
Swale Borough Council,29UM,21/03/2018,1157681,11660.43,SERCO LEISURE OPERATING LIMITED,04687478                 ,LEISURE & OPEN SPACES,Procurement Contracts Only,Cultural and Related Services
Swale Borough Council,29UM,21/03/2018,1157990,750.00,SHEPPEY HERITAGE TRUST LTD,                         ,TOURISM & SPORTS DEVELOPMENT,Grants & Subscriptions,Cultural and Related Services
Swale Borough Council,29UM,21/03/2018,1157786,572.71,SHEPPEY MATTERS,3946296                  ,ECONOMY & COMMUNITIES,Grants & Subscriptions,Central Services to the Public
Swale Borough Council,29UM,21/03/2018,1157790,900.00,SITTINGBOURNE IN BLOOM,                         ,ECONOMY & COMMUNITIES,Grants & Subscriptions,Central Services to the Public
Swale Borough Council,29UM,21/03/2018,1158126,135039.65,SPIRIT OF SITTINGBOURNE LLP,OC377168                 ,FINANCIAL SERVICES,STC - Capitalised Fees And Charges,Not used in this Structure
Swale Borough Council,29UM,21/03/2018,1157791,250.00,SWALE COMMUNITY & VOLUNTARY SERVICES,277523                   ,ECONOMY & COMMUNITIES,Grants & Subscriptions,Central Services to the Public
Swale Borough Council,29UM,21/03/2018,1157679,12510.14,SWALE COMMUNITY LEISURE LIMITED,31132R                   ,LEISURE & OPEN SPACES,Procurement Contracts Only,Cultural and Related Services
Swale Borough Council,29UM,21/03/2018,1157680,7700.00,SWALE COMMUNITY LEISURE LIMITED,31132R                   ,LEISURE & OPEN SPACES,Procurement Contracts Only,Cultural and Related Services
Swale Borough Council,29UM,21/03/2018,1158067,1000.00,SWALE INDOOR BOWLING CENTRE,                         ,TOURISM & SPORTS DEVELOPMENT,Grants & Subscriptions,Cultural and Related Services
Swale Borough Council,29UM,21/03/2018,1157731,250.00,THE SITTINGBOURNE SOCIETY,                         ,ECONOMY & COMMUNITIES,Grants & Subscriptions,Central Services to the Public
Swale Borough Council,29UM,21/03/2018,1157732,250.00,THE SWEET HUT,                         ,ECONOMY & COMMUNITIES,Grants & Subscriptions,Central Services to the Public
Swale Borough Council,29UM,21/03/2018,1158057,265.00,THREE TOWNS OFFICE EQUIPMENT LTD,                         ,ECONOMIC DEVELOPMENT,Furniture,Internal Trading Cost Centres
Swale Borough Council,29UM,21/03/2018,1158009,19800.00,TRILATERAL RESEARCH LTD,8698690                  ,MKS LEGAL SERVICES,Performance Fund Expenditure,Ledger/Suspense Codes
Swale Borough Council,29UM,21/03/2018,1158065,285.00,VANGUARD CONSULTING LIMITED,2207133                  ,CHIEF EXECUTIVE,Conference,Internal Trading Cost Centres
Swale Borough Council,29UM,21/03/2018,1157568,2250.00,WEALD WOODSCAPES LTD,8028446                  ,LEISURE & OPEN SPACES,Maintenance - Grounds,Cultural and Related Services
Swale Borough Council,29UM,21/03/2018,1157673,280.00,WEALD WOODSCAPES LTD,8028446                  ,LEISURE & OPEN SPACES,Maintenance - Grounds,Cultural and Related Services
Swale Borough Council,29UM,21/03/2018,1158088,2318.75,WEALDEN REHAB,                         ,HOUSING SERVICES,Housing Renovation Grants,Not used in this Structure
Swale Borough Council,29UM,21/03/2018,1158017,2898.00,WEST FAVERSHAM COMMUNITY ASSOCIATION,                         ,DEMOCRATIC & ELECTORAL SERVICES,Payments in Year,Ledger/Suspense Codes
Swale Borough Council,29UM,21/03/2018,1157828,173.64,WHISTL UK LIMITED,04417047                 ,REVENUE SERVICES,Postage,Central Services to the Public
Swale Borough Council,29UM,21/03/2018,1157828,86.81,WHISTL UK LIMITED,04417047                 ,REVENUE SERVICES,Postage,Housing
Swale Borough Council,29UM,21/03/2018,1157828,9.19,WHISTL UK LIMITED,04417047                 ,CAR PARKS,Postage,Internal Trading Cost Centres
Swale Borough Council,29UM,21/03/2018,1157828,27.85,WHISTL UK LIMITED,04417047                 ,PROPERTY SERVICES,Postage,Holding Codes
Swale Borough Council,29UM,21/03/2018,1157828,42.41,WHISTL UK LIMITED,04417047                 ,DEMOCRATIC & ELECTORAL SERVICES,Postage,Central Services to the Public
Swale Borough Council,29UM,21/03/2018,1157975,13330.16,WHISTL UK LIMITED,04417047                 ,REVENUE SERVICES,Postage,Central Services to the Public
Swale Borough Council,29UM,21/03/2018,1157975,6665.08,WHISTL UK LIMITED,04417047                 ,REVENUE SERVICES,Postage,Housing
Swale Borough Council,29UM,21/03/2018,1157975,19.89,WHISTL UK LIMITED,04417047                 ,CAR PARKS,Postage,Internal Trading Cost Centres
Swale Borough Council,29UM,21/03/2018,1157975,68.48,WHISTL UK LIMITED,04417047                 ,PROPERTY SERVICES,Postage,Holding Codes
Swale Borough Council,29UM,21/03/2018,1157975,190.31,WHISTL UK LIMITED,04417047                 ,DEMOCRATIC & ELECTORAL SERVICES,Postage,Central Services to the Public
Swale Borough Council,29UM,21/03/2018,1157897,6555.00,WILKS HEAD & EVE,OC315743                 ,FINANCIAL SERVICES,Fees and Services,Internal Trading Cost Centres
Swale Borough Council,29UM,21/03/2018,1157806,364.00,WILLOW TREE HOME SOLUTIONS LTD,                         ,HOUSING SERVICES,Staying Put small repairs (contractors),Housing
Swale Borough Council,29UM,21/03/2018,1157856,1039.75,WILLOW TREE HOME SOLUTIONS LTD,                         ,HOUSING SERVICES,Staying Put small repairs (contractors),Housing
Swale Borough Council,29UM,29/03/2018,1158069,500.00,5TH SHEPPEY SCOUT GROUP,                         ,ECONOMY & COMMUNITIES,Grants & Subscriptions,Central Services to the Public
Swale Borough Council,29UM,29/03/2018,1158224,850.00,A.C MACKLIN FENCING,10311550                 ,LEISURE & OPEN SPACES,Maintenance - Grounds,Cultural and Related Services
Swale Borough Council,29UM,29/03/2018,1158224,528.95,A.C MACKLIN FENCING,10311550                 ,LEISURE & OPEN SPACES,Maintenance - Grounds,Cultural and Related Services
Swale Borough Council,29UM,29/03/2018,1158366,9014.70,ACORN MAINTENANCE SERVICES,3546898                  ,HOUSING SERVICES,Housing Renovation Grants,Not used in this Structure
Swale Borough Council,29UM,29/03/2018,1158154,142.44,ALLSTAR BUSINESS SOLUTIONS LTD - (DT),1073098                  ,SERVICE DELIVERY,Petrol/Derv & Oil,Cultural and Related Services
Swale Borough Council,29UM,29/03/2018,1158154,177.15,ALLSTAR BUSINESS SOLUTIONS LTD - (DT),1073098                  ,ENVIRONMENTAL RESPONSE TEAM,Fuel For Contract Vehicles,Internal Trading Cost Centres
Swale Borough Council,29UM,29/03/2018,1158371,2025.00,ASCENDIT LIFTS LTD,3493530                  ,HOUSING SERVICES,Housing Renovation Grants,Not used in this Structure
Swale Borough Council,29UM,29/03/2018,1158372,10030.00,ASCENDIT LIFTS LTD,3493530                  ,HOUSING SERVICES,Housing Renovation Grants,Not used in this Structure
Swale Borough Council,29UM,29/03/2018,1158076,637.50,BBP REGENERATION,2979594                  ,ECONOMIC DEVELOPMENT,Consultancy/Specialist Advice,Planning and Development Services
Swale Borough Council,29UM,29/03/2018,1158343,1182.87,BENSTEDS CHARITY WAR MEMORIAL FUND,                         ,ECONOMY & COMMUNITIES,Grants & Subscriptions,Central Services to the Public
Swale Borough Council,29UM,29/03/2018,1158334,545.45,BIFFA MUNICIPAL SERVICES LTD,4321212                  ,COMMUNITY SAFETY,Fees and Services,Planning and Development Services
Swale Borough Council,29UM,29/03/2018,1158007,1392.87,BLENWOOD LTD,4383277                  ,LEISURE & OPEN SPACES,Maintenance - Grounds,Environmental and Regulatory Services
Swale Borough Council,29UM,29/03/2018,1158162,2289.93,BLENWOOD LTD,4383277                  ,LEISURE & OPEN SPACES,Maintenance - Grounds,Environmental and Regulatory Services
Swale Borough Council,29UM,29/03/2018,1158163,1589.28,BLENWOOD LTD,4383277                  ,HOUSING SERVICES,General Maintenance,Housing
Swale Borough Council,29UM,29/03/2018,1158164,3200.69,BLENWOOD LTD,4383277                  ,LEISURE & OPEN SPACES,Grounds Maint Suspense,Cultural and Related Services
Swale Borough Council,29UM,29/03/2018,1158165,99465.28,BLENWOOD LTD,4383277                  ,LEISURE & OPEN SPACES,Grounds Maint Suspense,Cultural and Related Services
Swale Borough Council,29UM,29/03/2018,1158239,522.42,BLENWOOD LTD,4383277                  ,LEISURE & OPEN SPACES,Maintenance - Grounds,Environmental and Regulatory Services
Swale Borough Council,29UM,29/03/2018,1158240,3754.25,BLENWOOD LTD,4383277                  ,LEISURE & OPEN SPACES,Grounds Contract Variations,Cultural and Related Services
Swale Borough Council,29UM,29/03/2018,1158241,19363.67,BLENWOOD LTD,4383277                  ,LEISURE & OPEN SPACES,Grounds Contract Variations,Cultural and Related Services
Swale Borough Council,29UM,29/03/2018,1158242,285.00,BLENWOOD LTD,4383277                  ,LEISURE & OPEN SPACES,Maintenance - Grounds,Cultural and Related Services
Swale Borough Council,29UM,29/03/2018,1158210,808.00,BRITISH GAS TRADING LTD,                         ,PROPERTY SERVICES,Gas,Trading Undertaking
Swale Borough Council,29UM,29/03/2018,1158211,-808.00,BRITISH GAS TRADING LTD,                         ,PROPERTY SERVICES,Gas,Trading Undertaking
Swale Borough Council,29UM,29/03/2018,1158212,398.53,BRITISH GAS TRADING LTD,                         ,PROPERTY SERVICES,Gas,Trading Undertaking
Swale Borough Council,29UM,29/03/2018,1157938,975.00,BT DEVELOPMENTS,                         ,HOUSING SERVICES,B & B - Homelessness Landlord Payments,Housing
Swale Borough Council,29UM,29/03/2018,1158160,707.66,BT REDCARE,1800000                  ,COMMUNITY SAFETY,CCTV Line Rental,Environmental and Regulatory Services
Swale Borough Council,29UM,29/03/2018,1158004,1380.00,CAPITA BUSINESS SERVICES LTD,                         ,REVENUE SERVICES,Computer Equipment & Materials,Central Services to the Public
Swale Borough Council,29UM,29/03/2018,1158004,1380.00,CAPITA BUSINESS SERVICES LTD,                         ,REVENUE SERVICES,Computer Equipment & Materials,Housing
Swale Borough Council,29UM,29/03/2018,1158217,252.00,CBS MAINTENANCE SERVICES LTD,                         ,CONTRACT & PROCUREMENT,Buildings Maintenance,Environmental and Regulatory Services
Swale Borough Council,29UM,29/03/2018,1158192,245.00,CIEH,                         ,MKS ENVIRONMENTAL SERVICES,Payments in Year,Ledger/Suspense Codes
Swale Borough Council,29UM,29/03/2018,1158192,245.00,CIEH,                         ,MKS ENVIRONMENTAL SERVICES,Payments in Year,Ledger/Suspense Codes
Swale Borough Council,29UM,29/03/2018,1158369,6503.17,COLDWELL CONSTRUCTION LTD,4814340                  ,HOUSING SERVICES,Housing Renovation Grants,Not used in this Structure
Swale Borough Council,29UM,29/03/2018,1158205,359.00,CONTRACT SECURITY SERVICES,2461362                  ,EXCHEQUER,Cash Security,Internal Trading Cost Centres
Swale Borough Council,29UM,29/03/2018,1158205,3294.72,CONTRACT SECURITY SERVICES,2461362                  ,CAR PARKS,Cash Security,Highway and Transport Services
Swale Borough Council,29UM,29/03/2018,1157424,1050.00,CUSHMAN & WAKEFIELD,2757768                  ,ECONOMY & COMMUNITIES,Capitalised Fees And Charges,Not used in this Structure
Swale Borough Council,29UM,29/03/2018,1158234,56.98,DCB (KENT) LIMITED,03532339                 ,LEISURE & OPEN SPACES,Non-Planned Building Maintenance,Environmental and Regulatory Services
Swale Borough Council,29UM,29/03/2018,1158234,32.25,DCB (KENT) LIMITED,03532339                 ,PROPERTY SERVICES,Non-Planned Building Maintenance,Trading Undertaking
Swale Borough Council,29UM,29/03/2018,1158234,21.50,DCB (KENT) LIMITED,03532339                 ,HOUSING SERVICES,General Maintenance,Housing
Swale Borough Council,29UM,29/03/2018,1158234,1285.64,DCB (KENT) LIMITED,03532339                 ,PROPERTY SERVICES,Buildings Maintenance,Corporate & Democratic Core
Swale Borough Council,29UM,29/03/2018,1158234,79.95,DCB (KENT) LIMITED,03532339                 ,PROPERTY SERVICES,Non-Planned Building Maintenance,Corporate & Democratic Core
Swale Borough Council,29UM,29/03/2018,1158234,21.50,DCB (KENT) LIMITED,03532339                 ,PROPERTY SERVICES,Non-Planned Building Maintenance,Corporate & Democratic Core
Swale Borough Council,29UM,29/03/2018,1158234,22.50,DCB (KENT) LIMITED,03532339                 ,CONTRACT & PROCUREMENT,Non-Planned Building Maintenance,Environmental and Regulatory Services
Swale Borough Council,29UM,29/03/2018,1158234,85.34,DCB (KENT) LIMITED,03532339                 ,CONTRACT & PROCUREMENT,Non-Planned Building Maintenance,Environmental and Regulatory Services
Swale Borough Council,29UM,29/03/2018,1158234,21.50,DCB (KENT) LIMITED,03532339                 ,LEISURE & OPEN SPACES,Non-Planned Building Maintenance,Cultural and Related Services
Swale Borough Council,29UM,29/03/2018,1158294,400.00,DEMELZA HOSPICE CARE FOR CHILDREN,02948500                 ,ECONOMY & COMMUNITIES,Grants & Subscriptions,Central Services to the Public
Swale Borough Council,29UM,29/03/2018,1158362,2300.00,DOLPHIN STAIRLIFTS (KENT),04181846                 ,HOUSING SERVICES,Housing Renovation Grants,Not used in this Structure
Swale Borough Council,29UM,29/03/2018,1158310,350.00,EASTERN ATHLETIC FOOTBALL CLUB,                         ,ECONOMY & COMMUNITIES,Grants & Subscriptions,Central Services to the Public
Swale Borough Council,29UM,29/03/2018,1155636,643.13,EDF ENERGY,2228297                  ,LEISURE & OPEN SPACES,Electricity,Cultural and Related Services
Swale Borough Council,29UM,29/03/2018,1158323,4362.50,ENVITECH EUROPE LTD,SC367372                 ,MKS ENVIRONMENTAL SERVICES,Private Contractors,Environmental and Regulatory Services
Swale Borough Council,29UM,29/03/2018,1158303,8000.00,EXCELSIOR SAFEGUARDING CIC,10858996                 ,COMMUNITY SAFETY,Grants & Subscriptions,Planning and Development Services
Swale Borough Council,29UM,29/03/2018,1158344,975.00,REDACTED PERSONAL INFORMATION,                         ,HOUSING SERVICES,RDS - Landlord claim on Bond Scheme,Housing
Swale Borough Council,29UM,29/03/2018,1158118,15185.00,GRANT THORNTON UK LLP,                         ,DIRECTOR OF CORPORATE SERVICES,External Audit Fee,Corporate & Democratic Core
Swale Borough Council,29UM,29/03/2018,1158367,5850.00,GREENS GROUNDWORK,                         ,HOUSING SERVICES,Housing Renovation Grants,Not used in this Structure
Swale Borough Council,29UM,29/03/2018,1157995,1500.00,HUBBARD & HOUGHTON CONSTRUCTION LTD,                         ,HOUSING SERVICES,Payments in Year,Ledger/Suspense Codes
Swale Borough Council,29UM,29/03/2018,1158373,1210.56,HUBBARD & HOUGHTON CONSTRUCTION LTD,                         ,HOUSING SERVICES,Housing Renovation Grants,Not used in this Structure
Swale Borough Council,29UM,29/03/2018,1158374,2636.37,HUBBARD & HOUGHTON CONSTRUCTION LTD,                         ,HOUSING SERVICES,Housing Renovation Grants,Not used in this Structure
Swale Borough Council,29UM,29/03/2018,1158228,1300.00,IMPERIAL CIVIL ENFORCEMENT SOLUTIONS,2023383                  ,CAR PARKS,Computer Equipment & Materials,Highway and Transport Services
Swale Borough Council,29UM,29/03/2018,1158363,6821.25,J & D SYSTEMS,                         ,HOUSING SERVICES,Housing Renovation Grants,Not used in this Structure
Swale Borough Council,29UM,29/03/2018,1158364,7101.75,J & D SYSTEMS,                         ,HOUSING SERVICES,Housing Renovation Grants,Not used in this Structure
Swale Borough Council,29UM,29/03/2018,1158159,1526.00,KAREBEAR KENNELS LTD,                         ,ENVIRONMENTAL RESPONSE TEAM,Fees and Services,Environmental and Regulatory Services
Swale Borough Council,29UM,29/03/2018,1158159,-289.00,KAREBEAR KENNELS LTD,                         ,ENVIRONMENTAL RESPONSE TEAM,Income collected by Dog Kennels,Environmental and Regulatory Services
Swale Borough Council,29UM,29/03/2018,1157941,2904.49,KENT COUNTY COUNCIL,                         ,COMMISSIONING & CUSTOMER CONTACT,Contracts,Internal Trading Cost Centres
Swale Borough Council,29UM,29/03/2018,1158090,7802.00,KENT COUNTY COUNCIL,                         ,PLANNING SERVICES,Fees and Services,Planning and Development Services
Swale Borough Council,29UM,29/03/2018,1158244,2121.00,KENT COUNTY COUNCIL,                         ,SERVICE DELIVERY,Private Contractors - CIS,Environmental and Regulatory Services
Swale Borough Council,29UM,29/03/2018,1158305,28689.28,KENT COUNTY COUNCIL,                         ,PLANNING SERVICES,Payments in Year,Ledger/Suspense Codes
Swale Borough Council,29UM,29/03/2018,1158305,28675.19,KENT COUNTY COUNCIL,                         ,PLANNING SERVICES,Payments in Year,Ledger/Suspense Codes
Swale Borough Council,29UM,29/03/2018,1158305,1638.69,KENT COUNTY COUNCIL,                         ,PLANNING SERVICES,Payments in Year,Ledger/Suspense Codes
Swale Borough Council,29UM,29/03/2018,1158305,830.04,KENT COUNTY COUNCIL,                         ,PLANNING SERVICES,Payments in Year,Ledger/Suspense Codes
Swale Borough Council,29UM,29/03/2018,1158305,869.93,KENT COUNTY COUNCIL,                         ,PLANNING SERVICES,Payments in Year,Ledger/Suspense Codes
Swale Borough Council,29UM,29/03/2018,1158324,1169.12,KENT COUNTY COUNCIL,                         ,SERVICE DELIVERY,Fees and Services,Highway and Transport Services
Swale Borough Council,29UM,29/03/2018,1158326,7153.43,KENT COUNTY COUNCIL,                         ,MKS ICT,Computer Equipment & Materials,Internal Trading Cost Centres
Swale Borough Council,29UM,29/03/2018,1158225,420.00,KENT MESSENGER LTD,505554                   ,TOURISM & SPORTS DEVELOPMENT,Advertising & Promo - Ext Fund by Grant & Other Income,Cultural and Related Services
Swale Borough Council,29UM,29/03/2018,1158218,750.00,LEMAR LIMITED,04350292                 ,SERVICE DELIVERY,Private Contractors - CIS,Highway and Transport Services
Swale Borough Council,29UM,29/03/2018,1158218,350.00,LEMAR LIMITED,04350292                 ,SERVICE DELIVERY,Private Contractors - CIS,Highway and Transport Services
Swale Borough Council,29UM,29/03/2018,1158222,750.00,LEMAR LIMITED,04350292                 ,SERVICE DELIVERY,Private Contractors - CIS,Highway and Transport Services
Swale Borough Council,29UM,29/03/2018,1158222,367.02,LEMAR LIMITED,04350292                 ,SERVICE DELIVERY,Private Contractors - CIS,Highway and Transport Services
Swale Borough Council,29UM,29/03/2018,1158223,300.00,LEMAR LIMITED,04350292                 ,CAR PARKS,Maintenance - Grounds,Highway and Transport Services
Swale Borough Council,29UM,29/03/2018,1158223,175.00,LEMAR LIMITED,04350292                 ,CAR PARKS,Maintenance - Grounds,Highway and Transport Services
Swale Borough Council,29UM,29/03/2018,1157649,6063.00,LESSHOMELESS LIMITED,08458851                 ,HOUSING SERVICES,B & B - Homelessness Landlord Payments,Housing
Swale Borough Council,29UM,29/03/2018,1157792,6402.00,LESSHOMELESS LIMITED,08458851                 ,HOUSING SERVICES,B & B - Homelessness Landlord Payments,Housing
Swale Borough Council,29UM,29/03/2018,1157793,15287.00,LESSHOMELESS LIMITED,08458851                 ,HOUSING SERVICES,B & B - Homelessness Landlord Payments,Housing
Swale Borough Council,29UM,29/03/2018,1158040,632.41,LLOYDS BANK - (DT),                         ,FINANCIAL SERVICES,Bank Charges,Corporate & Democratic Core
Swale Borough Council,29UM,29/03/2018,1158096,2000.00,LOCAL GOVERNMENT LAW TV,6790538                  ,MKS LEGAL SERVICES,Recruitment Adverts - Staff,Internal Trading Cost Centres
Swale Borough Council,29UM,29/03/2018,1158230,520.00,LUBBE & SONS (BULBS) LTD,836902                   ,LEISURE & OPEN SPACES,Nursery Stock,Cultural and Related Services
Swale Borough Council,29UM,29/03/2018,1158231,800.00,LUBBE & SONS (BULBS) LTD,836902                   ,LEISURE & OPEN SPACES,Nursery Stock,Cultural and Related Services
Swale Borough Council,29UM,29/03/2018,1158232,1134.40,LUBBE & SONS (BULBS) LTD,836902                   ,LEISURE & OPEN SPACES,Nursery Stock,Cultural and Related Services
Swale Borough Council,29UM,29/03/2018,1158327,2205.00,LUSHLAND,4289261                  ,PLANNING SERVICES,Fees and Services,Planning and Development Services
Swale Borough Council,29UM,29/03/2018,1158113,315.00,M.T.S. CLEANSING SERVICES LTD,2045340                  ,LEISURE & OPEN SPACES,Clearing Cesspools,Cultural and Related Services
Swale Borough Council,29UM,29/03/2018,1157725,2143.00,MAGEES GUESTHOUSE,                         ,HOUSING SERVICES,B & B - Homelessness Landlord Payments,Housing
Swale Borough Council,29UM,29/03/2018,1157961,2620.00,MAGEES GUESTHOUSE,                         ,HOUSING SERVICES,B & B - Homelessness Landlord Payments,Housing
Swale Borough Council,29UM,29/03/2018,1158193,3875.00,MAGEES GUESTHOUSE,                         ,HOUSING SERVICES,B & B - Homelessness Landlord Payments,Housing
Swale Borough Council,29UM,29/03/2018,1158309,300.00,MAIDSTONE & MID KENT MIND,1167328                  ,ECONOMY & COMMUNITIES,Grants & Subscriptions,Central Services to the Public
Swale Borough Council,29UM,29/03/2018,1158018,73072.27,MAIDSTONE BOROUGH COUNCIL,                         ,CONTRACT & PROCUREMENT,Private Contractors,Environmental and Regulatory Services
Swale Borough Council,29UM,29/03/2018,1158018,210577.06,MAIDSTONE BOROUGH COUNCIL,                         ,CONTRACT & PROCUREMENT,Private Contractors,Environmental and Regulatory Services
Swale Borough Council,29UM,29/03/2018,1158019,15965.45,MAIDSTONE BOROUGH COUNCIL,                         ,CONTRACT & PROCUREMENT,Equipment Purchase,Environmental and Regulatory Services
Swale Borough Council,29UM,29/03/2018,1158308,6731.00,MAINSTREAM TRAINING LTD,3348003                  ,COMMUNITY SAFETY,Fees and Services,Planning and Development Services
Swale Borough Council,29UM,29/03/2018,1158116,15491.17,MATRIX SCM LTD,2227962                  ,HUMAN RESOURCES,Agency/Contract Staff,Internal Trading Cost Centres
Swale Borough Council,29UM,29/03/2018,1157862,487.20,MEDWAY ACCOMMODATION LIMITED,                         ,HOUSING SERVICES,B & B - Homelessness Landlord Payments,Housing
Swale Borough Council,29UM,29/03/2018,1157862,101.50,MEDWAY ACCOMMODATION LIMITED,                         ,HOUSING SERVICES,B & B - Homelessness Landlord Payments,Housing
Swale Borough Council,29UM,29/03/2018,1158022,851.20,MEDWAY ACCOMMODATION LIMITED,                         ,HOUSING SERVICES,B & B - Homelessness Landlord Payments,Housing
Swale Borough Council,29UM,29/03/2018,1158022,177.33,MEDWAY ACCOMMODATION LIMITED,                         ,HOUSING SERVICES,B & B - Homelessness Landlord Payments,Housing
Swale Borough Council,29UM,29/03/2018,1158245,647.20,MEDWAY ACCOMMODATION LIMITED,                         ,HOUSING SERVICES,B & B - Homelessness Landlord Payments,Housing
Swale Borough Council,29UM,29/03/2018,1158245,134.83,MEDWAY ACCOMMODATION LIMITED,                         ,HOUSING SERVICES,B & B - Homelessness Landlord Payments,Housing
Swale Borough Council,29UM,29/03/2018,1158236,1354.53,MEDWAY PUBLIC SERVICES LTD,10041989                 ,COMMUNITY SAFETY,Fees and Services,Environmental and Regulatory Services
Swale Borough Council,29UM,29/03/2018,1158237,400.00,MEDWAY PUBLIC SERVICES LTD,10041989                 ,COMMUNITY SAFETY,Fees and Services,Environmental and Regulatory Services
Swale Borough Council,29UM,29/03/2018,1158251,3500.00,MELENGA BUSINESS SOLUTIONS LTD,06148446                 ,FINANCIAL SERVICES,Agency/Contract Staff,Internal Trading Cost Centres
Swale Borough Council,29UM,29/03/2018,1157939,17434.56,MONITOR CLEANING SERVICES LTD,02526388                 ,CONTRACT & PROCUREMENT,Private Contractors,Environmental and Regulatory Services
Swale Borough Council,29UM,29/03/2018,1158158,869.10,MPS MARKETING SERVICES LIMITED,6360656                  ,DEMOCRATIC & ELECTORAL SERVICES,Printing - External Funded by Grant & Other Income,Central Services to the Public
Swale Borough Council,29UM,29/03/2018,1158072,250.00,REDACTED PERSONAL INFORMATION,                         ,ENVIRONMENTAL RESPONSE TEAM,Legal Fees,Planning and Development Services
Swale Borough Council,29UM,29/03/2018,1158072,50.00,REDACTED PERSONAL INFORMATION,                         ,ENVIRONMENTAL RESPONSE TEAM,Legal Fees,Planning and Development Services
Swale Borough Council,29UM,29/03/2018,1157861,571.00,REDACTED PERSONAL INFORMATION,                         ,HOUSING SERVICES,B & B - Homelessness Landlord Payments,Housing
Swale Borough Council,29UM,29/03/2018,1158021,757.00,REDACTED PERSONAL INFORMATION,                         ,HOUSING SERVICES,B & B - Homelessness Landlord Payments,Housing
Swale Borough Council,29UM,29/03/2018,1158249,820.00,REDACTED PERSONAL INFORMATION,                         ,HOUSING SERVICES,B & B - Homelessness Landlord Payments,Housing
Swale Borough Council,29UM,29/03/2018,1158252,286.98,NPOWER,                         ,CONTRACT & PROCUREMENT,Electricity,Environmental and Regulatory Services
Swale Borough Council,29UM,29/03/2018,1158255,471.30,NPOWER,                         ,CONTRACT & PROCUREMENT,Electricity,Environmental and Regulatory Services
Swale Borough Council,29UM,29/03/2018,1158270,308.78,NPOWER,                         ,MKS ENVIRONMENTAL SERVICES,Electricity,Internal Trading Cost Centres
Swale Borough Council,29UM,29/03/2018,1158353,296.60,NPOWER,                         ,SERVICE DELIVERY,Electricity,Cultural and Related Services
Swale Borough Council,29UM,29/03/2018,1158078,32697.14,OPTIVO,09100835                 ,HOUSING SERVICES,B & B - Homelessness Landlord Payments,Housing
Swale Borough Council,29UM,29/03/2018,1158079,5000.00,OPTIVO,09100835                 ,ECONOMIC DEVELOPMENT,Fees and Services,Planning and Development Services
Swale Borough Council,29UM,29/03/2018,1157652,28722.00,PARAMOUNT INDEPENDENT PROPERTY SERVICES,                         ,HOUSING SERVICES,B & B - Homelessness Landlord Payments,Housing
Swale Borough Council,29UM,29/03/2018,1157876,305.00,PETER BAXTER ASSOCIATES LTD,3028997                  ,LEISURE & OPEN SPACES,Fees and Services,Environmental and Regulatory Services
Swale Borough Council,29UM,29/03/2018,1158207,365.15,PHOENIX SOFTWARE LTD,                         ,LEISURE & OPEN SPACES,Computer Equipment & Materials,Internal Trading Cost Centres
Swale Borough Council,29UM,29/03/2018,1158011,6514.75,PLAYDALE PLAYGROUNDS LTD,00525615                 ,LEISURE & OPEN SPACES,Construction,Not used in this Structure
Swale Borough Council,29UM,29/03/2018,1158199,600.00,PS BREASTFEEDING CIC,                         ,ECONOMY & COMMUNITIES,Grants & Subscriptions,Central Services to the Public
Swale Borough Council,29UM,29/03/2018,1157712,1435.00,REARDON PROPERTIES,                         ,HOUSING SERVICES,B & B - Homelessness Landlord Payments,Housing
Swale Borough Council,29UM,29/03/2018,1157799,1435.00,REARDON PROPERTIES,                         ,HOUSING SERVICES,B & B - Homelessness Landlord Payments,Housing
Swale Borough Council,29UM,29/03/2018,1157800,1335.00,REARDON PROPERTIES,                         ,HOUSING SERVICES,B & B - Homelessness Landlord Payments,Housing
Swale Borough Council,29UM,29/03/2018,1158201,1485.00,REARDON PROPERTIES,                         ,HOUSING SERVICES,B & B - Homelessness Landlord Payments,Housing
Swale Borough Council,29UM,29/03/2018,1158202,1696.00,REARDON PROPERTIES,                         ,HOUSING SERVICES,B & B - Homelessness Landlord Payments,Housing
Swale Borough Council,29UM,29/03/2018,1158203,1953.00,REARDON PROPERTIES,                         ,HOUSING SERVICES,B & B - Homelessness Landlord Payments,Housing
Swale Borough Council,29UM,29/03/2018,1158020,2295.00,RECOLLECT SYSTEMS INC,                         ,CONTRACT & PROCUREMENT,Waste and Recycling Promotion / Comm's Projects,Environmental and Regulatory Services
Swale Borough Council,29UM,29/03/2018,1158335,900.00,RODMERSHAM VILLAGE HALL TRUST,                         ,ECONOMY & COMMUNITIES,Grants & Subscriptions,Central Services to the Public
Swale Borough Council,29UM,29/03/2018,1158204,362.50,ROSPA,3021397                  ,PROPERTY SERVICES,Payments in Year,Ledger/Suspense Codes
Swale Borough Council,29UM,29/03/2018,1158271,381.64,ROYAL MAIL GROUP LTD,4138203                  ,REVENUE SERVICES,Postage,Central Services to the Public
Swale Borough Council,29UM,29/03/2018,1158360,859.90,RSP RAIL TRAVEL ACCOUNT - (DT),                         ,FINANCIAL SERVICES,Travel Warrants (Staff Travel),Internal Trading Cost Centres
Swale Borough Council,29UM,29/03/2018,1158120,2400.00,S & J SERVICES,                         ,LEISURE & OPEN SPACES,Maintenance - Grounds,Cultural and Related Services
Swale Borough Council,29UM,29/03/2018,1158120,2323.14,S & J SERVICES,                         ,LEISURE & OPEN SPACES,Maintenance - Grounds,Cultural and Related Services
Swale Borough Council,29UM,29/03/2018,1158144,500.00,S & J SERVICES,                         ,LEISURE & OPEN SPACES,Maintenance - Grounds,Cultural and Related Services
Swale Borough Council,29UM,29/03/2018,1158144,1120.80,S & J SERVICES,                         ,LEISURE & OPEN SPACES,Maintenance - Grounds,Cultural and Related Services
Swale Borough Council,29UM,29/03/2018,1158030,348.98,SCOTTISH WATER BUSINESS STREAM LTD,SC294924                 ,CAR PARKS,Water - Rateable Value,Highway and Transport Services
Swale Borough Council,29UM,29/03/2018,1158031,363.12,SCOTTISH WATER BUSINESS STREAM LTD,SC294924                 ,CAR PARKS,Payments in Year,Ledger/Suspense Codes
Swale Borough Council,29UM,29/03/2018,1158032,364.35,SCOTTISH WATER BUSINESS STREAM LTD,SC294924                 ,CAR PARKS,Payments in Year,Ledger/Suspense Codes
Swale Borough Council,29UM,29/03/2018,1158033,773.30,SCOTTISH WATER BUSINESS STREAM LTD,SC294924                 ,CAR PARKS,Payments in Year,Ledger/Suspense Codes
Swale Borough Council,29UM,29/03/2018,1158034,490.42,SCOTTISH WATER BUSINESS STREAM LTD,SC294924                 ,CAR PARKS,Payments in Year,Ledger/Suspense Codes
Swale Borough Council,29UM,29/03/2018,1158179,348.98,SCOTTISH WATER BUSINESS STREAM LTD,SC294924                 ,CAR PARKS,Payments in Year,Ledger/Suspense Codes
Swale Borough Council,29UM,29/03/2018,1158180,596.50,SCOTTISH WATER BUSINESS STREAM LTD,SC294924                 ,CAR PARKS,Payments in Year,Ledger/Suspense Codes
Swale Borough Council,29UM,29/03/2018,1158181,384.34,SCOTTISH WATER BUSINESS STREAM LTD,SC294924                 ,CAR PARKS,Payments in Year,Ledger/Suspense Codes
Swale Borough Council,29UM,29/03/2018,1158183,278.26,SCOTTISH WATER BUSINESS STREAM LTD,SC294924                 ,CAR PARKS,Payments in Year,Ledger/Suspense Codes
Swale Borough Council,29UM,29/03/2018,1158185,547.00,SCOTTISH WATER BUSINESS STREAM LTD,SC294924                 ,CAR PARKS,Payments in Year,Ledger/Suspense Codes
Swale Borough Council,29UM,29/03/2018,1158186,455.06,SCOTTISH WATER BUSINESS STREAM LTD,SC294924                 ,CAR PARKS,Payments in Year,Ledger/Suspense Codes
Swale Borough Council,29UM,29/03/2018,1158187,752.08,SCOTTISH WATER BUSINESS STREAM LTD,SC294924                 ,CAR PARKS,Payments in Year,Ledger/Suspense Codes
Swale Borough Council,29UM,29/03/2018,1158188,405.56,SCOTTISH WATER BUSINESS STREAM LTD,SC294924                 ,CAR PARKS,Payments in Year,Ledger/Suspense Codes
Swale Borough Council,29UM,29/03/2018,1158246,414.50,SEARCHFLOW LIMITED,04084804                 ,PROPERTY SERVICES,Fees and Services,Trading Undertaking
Swale Borough Council,29UM,29/03/2018,1158297,1350.00,SELLING VILLAGE HALL,                         ,ECONOMY & COMMUNITIES,Grants & Subscriptions,Central Services to the Public
Swale Borough Council,29UM,29/03/2018,1158095,23340.05,SERCO LIMITED,242246                   ,LEISURE & OPEN SPACES,Construction,Not used in this Structure
Swale Borough Council,29UM,29/03/2018,1158005,617.78,SIEMENS FINANCIAL SERVICES LIMITED,646166                   ,PROPERTY SERVICES,Coffee Machines - Rental,Corporate & Democratic Core
Swale Borough Council,29UM,29/03/2018,1158328,870.00,SITTINGBOURNE & MILTON SEA CADET UNIT,                         ,ECONOMY & COMMUNITIES,Grants & Subscriptions,Central Services to the Public
Swale Borough Council,29UM,29/03/2018,1158336,1429.25,SOLON SECURITY,03065075                 ,COMMUNITY SAFETY,Fees and Services,Planning and Development Services
Swale Borough Council,29UM,29/03/2018,1158299,180.00,SONAR ECOLOGY,9190813                  ,LEISURE & OPEN SPACES,Fees and Services,Environmental and Regulatory Services
Swale Borough Council,29UM,29/03/2018,1158299,180.00,SONAR ECOLOGY,9190813                  ,LEISURE & OPEN SPACES,Consultancy/Specialist Advice,Cultural and Related Services
Swale Borough Council,29UM,29/03/2018,1158365,6729.20,SOUTH EAST BUILDING CO LTD,1786838                  ,HOUSING SERVICES,Housing Renovation Grants,Not used in this Structure
Swale Borough Council,29UM,29/03/2018,1158074,300.00,SOUTH EAST EMPLOYERS,                         ,HUMAN RESOURCES,Management Consultants Fees,Corporate & Democratic Core
Swale Borough Council,29UM,29/03/2018,1158227,982.16,SOUTH EAST WATER,2679874                  ,LEISURE & OPEN SPACES,Water - Metered,Cultural and Related Services
Swale Borough Council,29UM,29/03/2018,1158238,322.97,SOUTH EAST WATER,2679874                  ,LEISURE & OPEN SPACES,Water - Metered,Environmental and Regulatory Services
Swale Borough Council,29UM,29/03/2018,1157539,4904.50,SUTCLIFFE PLAY LTD,435546                   ,LEISURE & OPEN SPACES,Capitalised Fees And Charges,Not used in this Structure
Swale Borough Council,29UM,29/03/2018,1158311,9991.63,SUTCLIFFE PLAY LTD,435546                   ,LEISURE & OPEN SPACES,Capitalised Fees And Charges,Not used in this Structure
Swale Borough Council,29UM,29/03/2018,1158341,308.16,TEMPCON INSTRUMENTATION LTD,1535366                  ,HOUSING SERVICES,Equipment Purchase,Housing
Swale Borough Council,29UM,29/03/2018,1158119,2770.00,THE BARNYARD,                         ,ECONOMY & COMMUNITIES,Communities Fund Expenditure,Ledger/Suspense Codes
Swale Borough Council,29UM,29/03/2018,1158119,-625.00,THE BARNYARD,                         ,ECONOMY & COMMUNITIES,Communities Fund Expenditure,Ledger/Suspense Codes
Swale Borough Council,29UM,29/03/2018,1158119,-125.00,THE BARNYARD,                         ,ECONOMY & COMMUNITIES,Communities Fund Expenditure,Ledger/Suspense Codes
Swale Borough Council,29UM,29/03/2018,1158167,1425.00,THE OYSTER PARTNERSHIP,05020374                 ,PLANNING SERVICES,Agency/Contract Staff,Planning and Development Services
Swale Borough Council,29UM,29/03/2018,1158168,1425.00,THE OYSTER PARTNERSHIP,05020374                 ,PLANNING SERVICES,Agency/Contract Staff,Planning and Development Services
Swale Borough Council,29UM,29/03/2018,1158131,600.00,THE RAMP PEOPLE,8115543                  ,HOUSING SERVICES,Staying Put - Materials,Housing
Swale Borough Council,29UM,29/03/2018,1158131,120.00,THE RAMP PEOPLE,8115543                  ,HOUSING SERVICES,Staying Put - Materials,Housing
Swale Borough Council,29UM,29/03/2018,1158058,795.00,THREE TOWNS OFFICE EQUIPMENT LTD,                         ,FINANCIAL SERVICES,Furniture,Internal Trading Cost Centres
Swale Borough Council,29UM,29/03/2018,1158059,5100.00,THREE TOWNS OFFICE EQUIPMENT LTD,                         ,COMMISSIONING & CUSTOMER CONTACT,Furniture,Internal Trading Cost Centres
Swale Borough Council,29UM,29/03/2018,1158359,312.92,TIM MOYA ASSOCIATES,3028475                  ,LEISURE & OPEN SPACES,Consultancy/Specialist Advice,Cultural and Related Services
Swale Borough Council,29UM,29/03/2018,1158243,420.00,TIME ASSURED LIMITED,7483197                  ,PROPERTY SERVICES,Non-Planned Building Maintenance,Cultural and Related Services
Swale Borough Council,29UM,29/03/2018,1158233,4960.00,TONBRIDGE FENCING LTD,09377847                 ,COMMUNITY SAFETY,Fees and Services,Environmental and Regulatory Services
Swale Borough Council,29UM,29/03/2018,1158368,3917.70,TOTAL HYGIENE LTD,                         ,HOUSING SERVICES,Housing Renovation Grants,Not used in this Structure
Swale Borough Council,29UM,29/03/2018,1157584,600.00,TRAFALGAR TAVERN LTD,07999329                 ,HOUSING SERVICES,B & B - Homelessness Landlord Payments,Housing
Swale Borough Council,29UM,29/03/2018,1157728,630.00,TRAFALGAR TAVERN LTD,07999329                 ,HOUSING SERVICES,B & B - Homelessness Landlord Payments,Housing
Swale Borough Council,29UM,29/03/2018,1158073,519.00,TRAFALGAR TAVERN LTD,07999329                 ,HOUSING SERVICES,B & B - Homelessness Landlord Payments,Housing
Swale Borough Council,29UM,29/03/2018,1158130,300.00,TRAFALGAR TAVERN LTD,07999329                 ,HOUSING SERVICES,B & B - Homelessness Landlord Payments,Housing
Swale Borough Council,29UM,29/03/2018,1158114,111122.04,TUNBRIDGE WELLS BOROUGH COUNCIL,                         ,MKS ENVIRONMENTAL SERVICES,MKS Charges for Environmental Services,Internal Trading Cost Centres
Swale Borough Council,29UM,29/03/2018,1158145,-33.62,UNISON,                         ,HUMAN RESOURCES,Payroll - Unison Deductions Admin Charge,Corporate & Democratic Core
Swale Borough Council,29UM,29/03/2018,1158092,333.19,WAREHOUSE EXPRESS LIMITED,03366976                 ,MKS ENVIRONMENTAL SERVICES,Equipment Purchase,Internal Trading Cost Centres
Swale Borough Council,29UM,29/03/2018,1158092,66.64,WAREHOUSE EXPRESS LIMITED,03366976                 ,MKS ENVIRONMENTAL SERVICES,Equipment Purchase,Internal Trading Cost Centres
Swale Borough Council,29UM,29/03/2018,1158156,139.88,WHISTL UK LIMITED,04417047                 ,REVENUE SERVICES,Postage,Central Services to the Public
Swale Borough Council,29UM,29/03/2018,1158156,69.93,WHISTL UK LIMITED,04417047                 ,REVENUE SERVICES,Postage,Housing
Swale Borough Council,29UM,29/03/2018,1158156,79.59,WHISTL UK LIMITED,04417047                 ,PROPERTY SERVICES,Postage,Holding Codes
Swale Borough Council,29UM,29/03/2018,1158157,898.63,WHISTL UK LIMITED,04417047                 ,REVENUE SERVICES,Postage,Central Services to the Public
Swale Borough Council,29UM,29/03/2018,1158157,449.31,WHISTL UK LIMITED,04417047                 ,REVENUE SERVICES,Postage,Housing
Swale Borough Council,29UM,29/03/2018,1158157,13.08,WHISTL UK LIMITED,04417047                 ,CAR PARKS,Postage,Internal Trading Cost Centres
Swale Borough Council,29UM,29/03/2018,1158157,425.87,WHISTL UK LIMITED,04417047                 ,PROPERTY SERVICES,Postage,Holding Codes
Swale Borough Council,29UM,29/03/2018,1158157,152.70,WHISTL UK LIMITED,04417047                 ,DEMOCRATIC & ELECTORAL SERVICES,Postage,Central Services to the Public
Swale Borough Council,29UM,29/03/2018,1157675,16812.00,WHITE RESIDENTIAL,                         ,HOUSING SERVICES,B & B - Homelessness Landlord Payments,Housing
Swale Borough Council,29UM,29/03/2018,1157997,1470.00,WILLOW TREE HOME SOLUTIONS LTD,                         ,HOUSING SERVICES,Staying Put small repairs (contractors),Housing
Swale Borough Council,29UM,29/03/2018,1158195,360.00,WILLOW TREE HOME SOLUTIONS LTD,                         ,HOUSING SERVICES,Staying Put small repairs (contractors),Housing
Swale Borough Council,29UM,29/03/2018,1158200,390.00,WILLOW TREE HOME SOLUTIONS LTD,                         ,HOUSING SERVICES,Staying Put small repairs (contractors),Housing
Swale Borough Council,29UM,29/03/2018,1158361,7382.41,WILLOW TREE HOME SOLUTIONS LTD,                         ,HOUSING SERVICES,Housing Renovation Grants,Not used in this Structure
Swale Borough Council,29UM,29/03/2018,1158401,1030.73,WORLDPAY (DT),07316500                 ,REVENUE SERVICES,Commission Paid,Central Services to the Public
Swale Borough Council,29UM,29/03/2018,1158401,27.50,WORLDPAY (DT),07316500                 ,REVENUE SERVICES,Commission Paid,Central Services to the Public
Swale Borough Council,29UM,29/03/2018,1158401,27.50,WORLDPAY (DT),07316500                 ,REVENUE SERVICES,Commission Paid,Housing
Swale Borough Council,29UM,29/03/2018,1158401,13.75,WORLDPAY (DT),07316500                 ,EXCHEQUER,Commission Paid,Internal Trading Cost Centres
Swale Borough Council,29UM,29/03/2018,1158401,290.00,WORLDPAY (DT),07316500                 ,EXCHEQUER,Commission Paid,Internal Trading Cost Centres
Swale Borough Council,29UM,29/03/2018,1158401,1.43,WORLDPAY (DT),07316500                 ,EXCHEQUER,Commission Paid,Internal Trading Cost Centres
Swale Borough Council,29UM,29/03/2018,1158402,634.58,WORLDPAY (DT),07316500                 ,REVENUE SERVICES,Commission Paid,Central Services to the Public
Swale Borough Council,29UM,29/03/2018,1158402,16.70,WORLDPAY (DT),07316500                 ,REVENUE SERVICES,Commission Paid,Central Services to the Public
Swale Borough Council,29UM,29/03/2018,1158402,16.70,WORLDPAY (DT),07316500                 ,REVENUE SERVICES,Commission Paid,Housing
Swale Borough Council,29UM,29/03/2018,1158402,167.00,WORLDPAY (DT),07316500                 ,EXCHEQUER,Commission Paid,Internal Trading Cost Centres
Swale Borough Council,29UM,29/03/2018,1158402,1.06,WORLDPAY (DT),07316500                 ,EXCHEQUER,Commission Paid,Internal Trading Cost Centres
Swale Borough Council,29UM,29/03/2018,1158403,116.48,WORLDPAY (DT),07316500                 ,REVENUE SERVICES,Commission Paid,Central Services to the Public
Swale Borough Council,29UM,29/03/2018,1158403,6.05,WORLDPAY (DT),07316500                 ,REVENUE SERVICES,Commission Paid,Central Services to the Public
Swale Borough Council,29UM,29/03/2018,1158403,3.77,WORLDPAY (DT),07316500                 ,REVENUE SERVICES,Commission Paid,Housing
Swale Borough Council,29UM,29/03/2018,1158403,279.30,WORLDPAY (DT),07316500                 ,EXCHEQUER,Commission Paid,Internal Trading Cost Centres
Swale Borough Council,29UM,29/03/2018,1158403,2.51,WORLDPAY (DT),07316500                 ,EXCHEQUER,Commission Paid,Internal Trading Cost Centres
Swale Borough Council,29UM,29/03/2018,1158403,9.99,WORLDPAY (DT),07316500                 ,MKS ICT,Fees and Services,Internal Trading Cost Centres
Swale Borough Council,29UM,29/03/2018,1158110,4617.00,WYNDEHAM PETERBOROUGH LTD,2261988                  ,COMMUNICATIONS,Developing & Printing,Corporate & Democratic Core
